Workbook

Sheet Sheet1
A1: Demonstration of effect of 1st symmetricalization and 2nd derivative sharpening on perpendicular drop area measurements of two overlapping exponentially modified Gaussian (EMG) peaks.
A2: Simulated peaks | C2: Cells B4 - B6 control the peak width, noise, and relative height of peak 2 of the simulated data set. Cells J4 and J5 control the first and second derivatve weighting factors. | AC2: Automatically calculated x and y values for peaks and valleys
A3: peak 2 | B3: 0.3 | C3: AmpT | D3: % error | E3: Area 1 | F3: Area 2 | G3: True area 1 | H3: True area 2 | I3: Click buttons to change K1 (1st derivative) and K2 (2nd derivative) weighting factors. | AC3: Raw | AD3: y value | AE3: x | AF3: row# | AG3: sharp | AH3: y value | AI3: x | AJ3: row#
A4: sigma | B4: 55.55 | C4: 0.01 | D4: Raw | E4: =(AD7-G4)/G4 -> 0.02030612223 | F4: =(AD8-H4)/H4 -> -0.04367932063 | G4: =SUM(AO10:AO314)*(A10-A9) -> 139.2432007 | H4: =$B$3*G4 -> 41.7729602 | I4: K1= | J4: 3.3 | L4: The smooth function is defined by the 17 red coefficients in row 5, columns K through AA. | AC4: peak1 | AD4: =INDIRECT("B"&AF4) -> 0.9873857538 | AE4: =INDIRECT("A"&AF4) -> 995 | AF4: =MATCH(1,U11:U351,0)+7 -> 208 | AG4: peak1 | AH4: =INDIRECT("j"&AJ4) -> 0.9971367462 | AI4: =INDIRECT("A"&AJ4) -> 995 | AJ4: =MATCH(1,AB11:AB351,0)+9 -> 208
A5: Noise | B5: 0 | C5: SlopeT | D5: Sharp | E5: =(AH7-G4)/G4 -> 0.01846553517 | F5: =(AH8-H4)/H4 -> -0.03791399709 | G5: total area | H5: =SUM(J9:J313)*(A10-A9) -> 181.016161 | I5: K2= | J5: 0 | L5: -8 | M5: -7 | N5: -6 | O5: -5 | P5: -4 | Q5: -3 | R5: -2 | S5: -1 | T5: 0 | U5: 1 | V5: 2 | W5: 3 | X5: 4 | Y5: 5 | Z5: 6 | AA5: 7 | AB5: 8 | AC5: peak2 | AD5: =INDIRECT("B"&AF5) -> 0.2946108344 | AE5: =INDIRECT("A"&AF5) -> 1190 | AF5: =MATCH(2,U11:U351,0)+7 -> 247 | AG5: peak2 | AH5: =INDIRECT("j"&AJ5) -> 0.2975714738 | AI5: =INDIRECT("A"&AJ5) -> 1190 | AJ5: =MATCH(2,AB12:AB352,0)+9 -> 247
A6: lambda | B6: 0.3 | C6: 1e-06 | D6: Rs= | E6: =200/(4*B4) -> 0.900090009 | F6: =AJ8 -> 0.6636525443 | G6: dip between sharpened peaks | K6: Smooth coefficients---> | L6: 1 | M6: 2 | N6: 3 | O6: 4 | P6: 5 | Q6: 6 | R6: 7 | S6: 8 | T6: 9 | U6: 8 | V6: 7 | W6: 6 | X6: 5 | Y6: 4 | Z6: 3 | AA6: 2 | AB6: 1 | AC6: valley | AD6: =MIN(INDIRECT("B"&AF4):INDIRECT("B"&AF5)) -> 0.200574986 | AE6: =INDIRECT("A"&MATCH(AD6,INDIRECT("B"&AF4):INDIRECT("B"&AF5),0)+AF4-1) -> 1130 | AF6: =MATCH(AD6,INDIRECT("B"&AF4):INDIRECT("B"&AF5),0)+AF4-1 -> 235 | AG6: valley | AH6: =MIN(INDIRECT("j"&AJ4):INDIRECT("j"&AJ5)) -> 0.1974840657 | AI6: =INDIRECT("A"&MATCH(AH6,INDIRECT("j"&AJ4):INDIRECT("j"&AJ5),0)+AJ4-1) -> 1125 | AJ6: =MATCH(AH6,INDIRECT("j"&AJ4):INDIRECT("j"&AJ5),0)+AJ4-1 -> 234
A7: Simulated data | C7: 1st | E7: Smoothed | F7: 2nd | G7: Smoothed | J7: Sharpened | AC7: Area 1 | AD7: =SUM(B9:INDIRECT("B"&AF6))*(A10-A9) -> 142.0706901 | AE7: shift | AF7: =AF4-109 -> 99 | AG7: Area 1 | AH7: =SUM(J9:INDIRECT("j"&AJ6))*(A10-A9) -> 141.8144009 | AI7: shift | AJ7: =AJ4-109 -> 99
A8: X | B8: Y | C8: derivative | E8: 1st deriv. | F8: derivative | G8: 2nd deriv. | J8: Signal | K8: d/dt sharpened signal | L8: smoothed | T8: Peak detection matrix | AC8: Area 2 | AD8: =SUM(INDIRECT("B"&AF6):B349)*(A11-A10) -> 39.94834567 | AE8: % dip | AF8: =AD6/AD5 -> 0.6808133397 | AG8: Area 2 | AH8: =SUM(INDIRECT("j"&AJ6):J347)*(A10-A9) -> 40.18918031 | AI8: % dip | AJ8: =AH6/AH5 -> 0.6636525443
A9: 0 | B9: =(($B$4*$B$6*SQRT(PI()/2)*EXP(0.5*($B$4*$B$6)^2-$B$6*(A9-1000))*ERFC((1/SQRT(2))*($B$4*$B$6-((A9-1000)/$B$4))))+$B$3*($B$4*$B$6*SQRT(PI()/2)*EXP(0.5*($B$4*$B$6)^2-$B$6*(A9-1200))*ERFC((1/SQRT(2))*($B$4*$B$6-((A9-1200)/$B$4)))))+$B$5*(RAND()-RAND()+RAND()-RAND()) -> 2.049989398e-71 | C9: 0 | E9: 0 | G9: 0 | J9: =B9-($J$5*G9)+($J$4*E9) -> 2.049989398e-71 | Q9: =MAX(U11:U349) -> 2 | R9: peaks in raw data | W9: =MAX(AB11:AB349) -> 2 | X9: peaks in sharpened data | AO9: single EMG
A10: 5 | B10: =(($B$4*$B$6*SQRT(PI()/2)*EXP(0.5*($B$4*$B$6)^2-$B$6*(A10-1000))*ERFC((1/SQRT(2))*($B$4*$B$6-((A10-1000)/$B$4))))+$B$3*($B$4*$B$6*SQRT(PI()/2)*EXP(0.5*($B$4*$B$6)^2-$B$6*(A10-1200))*ERFC((1/SQRT(2))*($B$4*$B$6-((A10-1200)/$B$4)))))+$B$5*(RAND()-RAND()+RAND()-RAND()) -> 1.03470693e-70 | C10: =(B10-B9)/(A10-A9) -> 1.65941598e-71 | E10: 0 | F10: =(E11-E9)/(A11-A9) -> 0 | G10: 0 | J10: =B10-($J$5*G10)+($J$4*E10) -> 1.03470693e-70 | K10: =(J10-J9)/(A10-A9) -> 1.65941598e-71 | P10: Signal greater than amplitude threshold? | Q10: Down zero crossing in first derivative? | R10: Crossing slope greater than slope threshold? | S10: All three conditions met? Peak detected! | T10: # of peaks so far | U10: # | W10: Signal greater than amplitude threshold? | X10: Down zero crossing in first derivative? | Y10: Crossing slope greater than slope threshold? | Z10: All three conditions met? Peak detected! | AA10: # of peaks so far | AB10: # | AO10: =(($B$4*$B$6*SQRT(PI()/2)*EXP(0.5*($B$4*$B$6)^2-$B$6*(A9-1000))*ERFC((1/SQRT(2))*($B$4*$B$6-((A9-1000)/$B$4))))) -> 2.049989398e-71
A11: 10 | B11: 5.180450639e-70 | C11: =(B11-B10)/(A11-A10) -> 8.291487417e-71 | E11: 0 | F11: 0 | G11: 0 | J11: 5.180450639e-70 | K11: =(J12-J11)/(A11-A10) -> 4.109464252e-70 | P11: =IF(B11>$C$4,1,0) -> 0 | Q11: =IF(SIGN(E10) > SIGN(E11),1,0) -> 0 | R11: =IF((E10 - E11)>$C$6,1,0) -> 0 | S11: =P11*Q11*R11 -> 0 | T11: =SUM($S$10:$S12) -> 0 | U11: =IF(S11,T11,0) -> 0 | W11: =IF(J11>$C$4,1,0) -> 0 | X11: =IF(SIGN(L10) > SIGN(L11),1,0) -> 0 | Y11: =IF((L10 - L11)>$C$6,1,0) -> 0 | Z11: =W11*X11*Y11 -> 0 | AA11: =SUM($Z$11:$Z12) -> 0 | AB11: =IF(Z11,AA11,0) -> 0 | AO11: 1.03470693e-70
A12: 15 | B12: 2.57277719e-69 | C12: 4.109464252e-70 | E12: 0 | F12: 0 | G12: 0 | J12: 2.57277719e-69 | K12: 2.020288807e-69 | P12: =IF(B12>$C$4,1,0) -> 0 | Q12: =IF(SIGN(E11) > SIGN(E12),1,0) -> 0 | R12: =IF((E11 - E12)>$C$6,1,0) -> 0 | S12: =P12*Q12*R12 -> 0 | T12: =SUM($S$10:$S13) -> 0 | U12: =IF(S12,T12,0) -> 0 | W12: =IF(J12>$C$4,1,0) -> 0 | X12: =IF(SIGN(L11) > SIGN(L12),1,0) -> 0 | Y12: =IF((L11 - L12)>$C$6,1,0) -> 0 | Z12: =W12*X12*Y12 -> 0 | AA12: =SUM($Z$11:$Z13) -> 0 | AB12: =IF(Z12,AA12,0) -> 0 | AO12: 5.180450639e-70
A13: 20 | B13: 1.267422122e-68 | C13: 2.020288807e-69 | E13: 0 | F13: 0 | G13: 0 | J13: 1.267422122e-68 | K13: 9.851834411e-69 | P13: 0 | Q13: 0 | R13: 0 | S13: 0 | T13: =SUM($S$10:$S14) -> 0 | U13: 0 | W13: 0 | X13: 0 | Y13: 0 | Z13: 0 | AA13: =SUM($Z$11:$Z14) -> 0 | AB13: 0 | AO13: 2.57277719e-69
A14: 25 | B14: 6.193339328e-68 | C14: 9.851834411e-69 | E14: 0 | F14: 0 | G14: 0 | J14: 6.193339328e-68 | K14: 4.76536366e-68 | P14: 0 | Q14: 0 | R14: 0 | S14: 0 | T14: =SUM($S$10:$S15) -> 0 | U14: 0 | W14: 0 | X14: 0 | Y14: 0 | Z14: 0 | AA14: =SUM($Z$11:$Z15) -> 0 | AB14: 0 | AO14: 1.267422122e-68
A15: 30 | B15: 3.002015763e-67 | C15: 4.76536366e-68 | E15: 0 | F15: 0 | G15: 0 | J15: 3.002015763e-67 | K15: 2.286389383e-67 | P15: 0 | Q15: 0 | R15: 0 | S15: 0 | T15: =SUM($S$10:$S16) -> 0 | U15: 0 | W15: 0 | X15: 0 | Y15: 0 | Z15: 0 | AA15: =SUM($Z$11:$Z16) -> 0 | AB15: 0 | AO15: 6.193339328e-68
A16: 35 | B16: 1.443396268e-66 | C16: 2.286389383e-67 | E16: 0 | F16: 0 | G16: 0 | J16: 1.443396268e-66 | K16: 1.088126639e-66 | P16: 0 | Q16: 0 | R16: 0 | S16: 0 | T16: =SUM($S$10:$S17) -> 0 | U16: 0 | W16: 0 | X16: 0 | Y16: 0 | Z16: 0 | AA16: =SUM($Z$11:$Z17) -> 0 | AB16: 0 | AO16: 3.002015763e-67
A17: 40 | B17: 6.88402946e-66 | C17: 1.088126639e-66 | E17: 0 | F17: 0 | G17: 0 | J17: 6.88402946e-66 | K17: 1.284457409e-62 | L17: =(K9*$L$6+K10*$M$6+K11*$N$6+K12*$O$6+K13*$P$6+K14*$Q$6+K15*$R$6+K16*$S$6+K17*$T$6+K18*$U$6+K19*$V$6+K20*$W$6+K21*$X$6+K22*$Y$6+K23*$Z$6+K24*$AA$6+K25*$AB$6)/SUM($L$6:$AB$6) -> 2.375437e-59 | P17: 0 | Q17: 0 | R17: 0 | S17: 0 | T17: =SUM($S$10:$S18) -> 0 | U17: 0 | W17: 0 | X17: 0 | Y17: 0 | Z17: 0 | AA17: =SUM($Z$11:$Z18) -> 0 | AB17: 0 | AO17: 1.443396268e-66
A18: 45 | B18: 3.256749919e-65 | C18: 5.136693945e-66 | E18: =(C10*$L$6+C11*$M$6+C12*$N$6+C13*$O$6+C14*$P$6+C15*$Q$6+C16*$R$6+C17*$S$6+C18*$T$6+C19*$U$6+C20*$V$6+C21*$W$6+C22*$X$6+C23*$Y$6+C24*$Z$6+C25*$AA$6+C26*$AB$6)/SUM($L$6:$AB$6) -> 1.945369302e-62 | F18: 0 | G18: 0 | J18: 6.422975446e-62 | K18: 4.379186768e-62 | L18: =(K10*$L$6+K11*$M$6+K12*$N$6+K13*$O$6+K14*$P$6+K15*$Q$6+K16*$R$6+K17*$S$6+K18*$T$6+K19*$U$6+K20*$V$6+K21*$W$6+K22*$X$6+K23*$Y$6+K24*$Z$6+K25*$AA$6+K26*$AB$6)/SUM($L$6:$AB$6) -> 9.843829269e-59 | P18: 0 | Q18: 0 | R18: 0 | S18: 0 | T18: =SUM($S$10:$S19) -> 0 | U18: 0 | W18: 0 | X18: 0 | Y18: 0 | Z18: 0 | AA18: =SUM($Z$11:$Z19) -> 0 | AB18: 0 | AO18: 6.88402946e-66
A19: 50 | B19: 1.528307225e-64 | C19: 2.405264467e-65 | E19: 8.576856429e-62 | F19: =(E20-E18)/(A20-A18) -> 3.55648513e-62 | G19: 0 | J19: 2.831890929e-61 | K19: 1.910719199e-61 | L19: 4.046643133e-58 | P19: 0 | Q19: 0 | R19: 0 | S19: 0 | T19: =SUM($S$10:$S20) -> 0 | U19: 0 | W19: 0 | X19: 0 | Y19: 0 | Z19: 0 | AA19: =SUM($Z$11:$Z20) -> 0 | AB19: 0 | AO19: 3.256749919e-65
A20: 55 | B20: 7.114125175e-64 | C20: 1.11716359e-64 | E20: 3.751022061e-61 | F20: 1.541527769e-61 | G20: 0 | J20: 1.238548693e-60 | K20: 8.269628137e-61 | L20: 1.650198034e-57 | P20: 0 | Q20: 0 | R20: 0 | S20: 0 | T20: =SUM($S$10:$S21) -> 0 | U20: 0 | W20: 0 | X20: 0 | Y20: 0 | Z20: 0 | AA20: =SUM($Z$11:$Z21) -> 0 | AB20: 0 | AO20: 1.528307225e-64
A21: 60 | B21: 3.284860537e-63 | C21: 5.146896038e-64 | E21: 1.627296333e-60 | F21: 6.627821241e-61 | G21: 0 | J21: 5.373362761e-60 | K21: 3.550265956e-60 | L21: 6.675562819e-57 | P21: 0 | Q21: 0 | R21: 0 | S21: 0 | T21: =SUM($S$10:$S22) -> 0 | U21: 0 | W21: 0 | X21: 0 | Y21: 0 | Z21: 0 | AA21: =SUM($Z$11:$Z22) -> 0 | AB21: 0 | AO21: 7.114125175e-64
A22: 65 | B22: 1.504516596e-62 | C22: 2.352061084e-63 | E22: 7.002923447e-60 | F22: 2.826697523e-60 | G22: 0 | J22: 2.312469254e-59 | K22: 1.511895145e-59 | L22: 2.678864749e-56 | P22: 0 | Q22: 0 | R22: 0 | S22: 0 | T22: =SUM($S$10:$S23) -> 0 | U22: 0 | W22: 0 | X22: 0 | Y22: 0 | Z22: 0 | AA22: =SUM($Z$11:$Z23) -> 0 | AB22: 0 | AO22: 3.284860537e-63
A23: 70 | B23: 6.835364204e-62 | C23: 1.066169522e-62 | E23: 2.989427156e-59 | F23: 1.195850934e-59 | G23: 0 | J23: 9.87194498e-59 | K23: 6.386580973e-59 | L23: 1.066412458e-55 | P23: 0 | Q23: 0 | R23: 0 | S23: 0 | T23: =SUM($S$10:$S24) -> 0 | U23: 0 | W23: 0 | X23: 0 | Y23: 0 | Z23: 0 | AA23: =SUM($Z$11:$Z24) -> 0 | AB23: 0 | AD23: Tom O'Haver (toh@umd.edu), Version 6, August 2018 | AO23: 1.504516596e-62
A24: 75 | B24: 3.080427443e-61 | C24: 4.793782046e-62 | E24: 1.265880169e-58 | F24: 5.018384723e-59 | G24: 0 | J24: 4.180484985e-58 | K24: 2.676093182e-58 | L24: 4.211255718e-55 | P24: 0 | Q24: 0 | R24: 0 | S24: 0 | T24: =SUM($S$10:$S25) -> 0 | U24: 0 | W24: 0 | X24: 0 | Y24: 0 | Z24: 0 | AA24: =SUM($Z$11:$Z25) -> 0 | AB24: 0 | AO24: 6.835364204e-62
A25: 80 | B25: 1.377034978e-60 | C25: 2.137984467e-61 | E25: 5.317327438e-58 | F25: 2.089007954e-58 | G25: 0 | J25: 1.75609509e-57 | K25: 1.112295542e-57 | L25: 1.649720885e-54 | P25: 0 | Q25: 0 | R25: 0 | S25: 0 | T25: =SUM($S$10:$S26) -> 0 | U25: 0 | W25: 0 | X25: 0 | Y25: 0 | Z25: 0 | AA25: =SUM($Z$11:$Z26) -> 0 | AB25: 0 | AO25: 3.080427443e-61
A26: 85 | B26: 6.106096177e-60 | C26: 9.458122398e-61 | E26: 2.21559597e-57 | F26: 8.625921668e-58 | G26: 0 | J26: 7.317572799e-57 | K26: 4.58590887e-57 | L26: 6.410948279e-54 | P26: 0 | Q26: 0 | R26: 0 | S26: 0 | T26: =SUM($S$10:$S27) -> 0 | U26: 0 | W26: 0 | X26: 0 | Y26: 0 | Z26: 0 | AA26: =SUM($Z$11:$Z27) -> 0 | AB26: 0 | AO26: 1.377034978e-60
A27: 90 | B27: 2.6857588e-59 | C27: 4.150298364e-60 | E27: 9.157654412e-57 | F27: 3.533135079e-57 | G27: =(F19*$L$6+F20*$M$6+F21*$N$6+F22*$O$6+F23*$P$6+F24*$Q$6+F25*$R$6+F26*$S$6+F27*$T$6+F28*$U$6+F29*$V$6+F30*$W$6+F31*$X$6+F32*$Y$6+F33*$Z$6+F34*$AA$6+F35*$AB$6)/SUM($L$6:$AB$6) -> 4.708863377e-54 | J27: 3.024711715e-56 | K27: 1.875499752e-56 | L27: 2.471425461e-53 | P27: 0 | Q27: 0 | R27: 0 | S27: 0 | T27: =SUM($S$10:$S28) -> 0 | U27: 0 | W27: 0 | X27: 0 | Y27: 0 | Z27: 0 | AA27: =SUM($Z$11:$Z28) -> 0 | AB27: 0 | AO27: 6.106096177e-60
A28: 95 | B28: 1.171804306e-58 | C28: 1.806456852e-59 | E28: 3.754694676e-56 | F28: 1.43550374e-56 | G28: =(F20*$L$6+F21*$M$6+F22*$N$6+F23*$O$6+F24*$P$6+F25*$Q$6+F26*$R$6+F27*$S$6+F28*$T$6+F29*$U$6+F30*$V$6+F31*$W$6+F32*$X$6+F33*$Y$6+F34*$Z$6+F35*$AA$6+F36*$AB$6)/SUM($L$6:$AB$6) -> 1.803574975e-53 | J28: 1.240221047e-55 | K28: 7.608430582e-56 | L28: 9.451194871e-53 | P28: 0 | Q28: 0 | R28: 0 | S28: 0 | T28: =SUM($S$10:$S29) -> 0 | U28: 0 | W28: 0 | X28: 0 | Y28: 0 | Z28: 0 | AA28: =SUM($Z$11:$Z29) -> 0 | AB28: 0 | AO28: 2.6857588e-59
A29: 100 | B29: 5.071400444e-58 | C29: 7.799192277e-59 | E29: 1.527080284e-55 | F29: 5.785458864e-56 | G29: 6.852809909e-53 | J29: 5.044436338e-55 | K29: 3.061679702e-55 | L29: 3.585423061e-52 | P29: 0 | Q29: 0 | R29: 0 | S29: 0 | T29: =SUM($S$10:$S30) -> 0 | U29: 0 | W29: 0 | X29: 0 | Y29: 0 | Z29: 0 | AA29: =SUM($Z$11:$Z30) -> 0 | AB29: 0 | AO29: 1.171804306e-58
A30: 105 | B30: 2.177135551e-57 | C30: 3.339991013e-58 | E30: 6.160928331e-55 | F30: 2.312920613e-55 | G30: 2.582973461e-52 | J30: 2.035283485e-54 | K30: 1.222112411e-54 | L30: 1.3493019e-51 | P30: 0 | Q30: 0 | R30: 0 | S30: 0 | T30: =SUM($S$10:$S31) -> 0 | U30: 0 | W30: 0 | X30: 0 | Y30: 0 | Z30: 0 | AA30: =SUM($Z$11:$Z31) -> 0 | AB30: 0 | AO30: 5.071400444e-58
A31: 110 | B31: 9.271026078e-57 | C31: 1.418778105e-57 | E31: 2.465628641e-54 | F31: 9.172191602e-55 | G31: 9.658026338e-52 | J31: 8.145845542e-54 | K31: 4.838930839e-54 | L31: 5.037249396e-51 | P31: 0 | Q31: 0 | R31: 0 | S31: 0 | T31: =SUM($S$10:$S32) -> 0 | U31: 0 | W31: 0 | X31: 0 | Y31: 0 | Z31: 0 | AA31: =SUM($Z$11:$Z32) -> 0 | AB31: 0 | AO31: 2.177135551e-57
A32: 115 | B32: 3.916110356e-56 | C32: 5.978015497e-57 | E32: 9.788284435e-54 | F32: 3.608070588e-54 | G32: 3.582402862e-51 | J32: 3.234049974e-53 | K32: 1.900529768e-53 | L32: 1.865494411e-50 | P32: 0 | Q32: 0 | R32: 0 | S32: 0 | T32: =SUM($S$10:$S33) -> 0 | U32: 0 | W32: 0 | X32: 0 | Y32: 0 | Z32: 0 | AA32: =SUM($Z$11:$Z33) -> 0 | AB32: 0 | AO32: 9.271026078e-57
A33: 120 | B33: 1.640842305e-55 | C33: 2.498462539e-56 | E33: 3.854633452e-53 | F33: 1.407882752e-53 | G33: 1.318191413e-50 | J33: 1.273669882e-52 | K33: 7.404352519e-53 | L33: 6.853481204e-50 | P33: 0 | Q33: 0 | R33: 0 | S33: 0 | T33: =SUM($S$10:$S34) -> 0 | U33: 0 | W33: 0 | X33: 0 | Y33: 0 | Z33: 0 | AA33: =SUM($Z$11:$Z34) -> 0 | AB33: 0 | AO33: 3.916110356e-56
A34: 125 | B34: 6.819673608e-55 | C34: 1.035766261e-55 | E34: 1.505765596e-52 | F34: 5.449385697e-53 | G34: 4.811726989e-50 | J34: 4.975846141e-52 | K34: 2.861454231e-52 | L34: 2.497732307e-49 | P34: 0 | Q34: 0 | R34: 0 | S34: 0 | T34: =SUM($S$10:$S35) -> 0 | U34: 0 | W34: 0 | X34: 0 | Y34: 0 | Z34: 0 | AA34: =SUM($Z$11:$Z35) -> 0 | AB34: 0 | AO34: 1.640842305e-55
A35: 130 | B35: 2.811545881e-54 | C35: 4.25915704e-55 | E35: 5.834849042e-52 | F35: 2.092272483e-52 | G35: 1.742377914e-49 | J35: 1.92831173e-51 | K35: 1.096917566e-51 | L35: 9.030225267e-49 | P35: 0 | Q35: 0 | R35: 0 | S35: 0 | T35: =SUM($S$10:$S36) -> 0 | U35: 0 | W35: 0 | X35: 0 | Y35: 0 | Z35: 0 | AA35: =SUM($Z$11:$Z36) -> 0 | AB35: 0 | AO35: 6.819673608e-55
A36: 135 | B36: 1.149771712e-53 | C36: 1.737234247e-54 | E36: 2.242849043e-51 | F36: 7.968537423e-52 | G36: 6.258972713e-49 | J36: 7.412899558e-51 | K36: 4.171082919e-51 | L36: 3.238694335e-48 | P36: 0 | Q36: 0 | R36: 0 | S36: 0 | T36: =SUM($S$10:$S37) -> 0 | U36: 0 | W36: 0 | X36: 0 | Y36: 0 | Z36: 0 | AA36: =SUM($Z$11:$Z37) -> 0 | AB36: 0 | AO36: 2.811545881e-54
A37: 140 | B37: 4.664047244e-53 | C37: 7.028551064e-54 | E37: 8.552022327e-51 | F37: 3.01043121e-51 | G37: 2.230403968e-48 | J37: 2.826831415e-50 | K37: =(J38-J37)/(A37-A36) -> 1.57329979e-50 | L37: 1.152287104e-47 | P37: 0 | Q37: 0 | R37: 0 | S37: 0 | T37: =SUM($S$10:$S38) -> 0 | U37: 0 | W37: 0 | X37: 0 | Y37: 0 | Z37: 0 | AA37: =SUM($Z$11:$Z38) -> 0 | AB37: 0 | AO37: 1.149771712e-53
A38: 145 | B38: 1.876718602e-52 | C38: 2.820627755e-53 | E38: 3.234716115e-50 | F38: 1.128154442e-50 | G38: 7.884682805e-48 | J38: 1.069333036e-49 | K38: 5.886568047e-50 | L38: 4.066975011e-47 | P38: 0 | Q38: 0 | R38: 0 | S38: 0 | T38: =SUM($S$10:$S39) -> 0 | U38: 0 | W38: 0 | X38: 0 | Y38: 0 | Z38: 0 | AA38: =SUM($Z$11:$Z39) -> 0 | AB38: 0 | AO38: 4.664047244e-53
A39: 150 | B39: 7.490663565e-52 | C39: 1.122788993e-52 | E39: 1.213674666e-49 | F39: 4.193708187e-50 | G39: 2.765066719e-47 | J39: 4.01261706e-49 | K39: 2.184746643e-49 | L39: 1.423977388e-46 | P39: 0 | Q39: 0 | R39: 0 | S39: 0 | T39: =SUM($S$10:$S40) -> 0 | U39: 0 | W39: 0 | X39: 0 | Y39: 0 | Z39: 0 | AA39: =SUM($Z$11:$Z40) -> 0 | AB39: 0 | AO39: 1.876718602e-52
A40: 155 | B40: 2.965694139e-51 | C40: 4.433255564e-52 | E40: 4.517179799e-49 | F40: 1.546385246e-49 | G40: 9.619404023e-47 | J40: 1.493635028e-48 | K40: 8.043192025e-49 | L40: 4.946023974e-46 | P40: 0 | Q40: 0 | R40: 0 | S40: 0 | T40: =SUM($S$10:$S41) -> 0 | U40: 0 | W40: 0 | X40: 0 | Y40: 0 | Z40: 0 | AA40: =SUM($Z$11:$Z41) -> 0 | AB40: 0 | AO40: 7.490663565e-52
A41: 160 | B41: 1.164708861e-50 | C41: 1.736278894e-51 | E41: 1.667752713e-48 | F41: 5.656230103e-49 | G41: 3.31980335e-46 | J41: 5.51523104e-48 | K41: 2.937274041e-48 | L41: 1.704243514e-45 | P41: 0 | Q41: 0 | R41: 0 | S41: 0 | T41: =SUM($S$10:$S42) -> 0 | U41: 0 | W41: 0 | X41: 0 | Y41: 0 | Z41: 0 | AA41: =SUM($Z$11:$Z42) -> 0 | AB41: 0 | AO41: 2.965694139e-51
A42: 165 | B42: 4.537256933e-50 | C42: 6.745096145e-51 | E42: 6.107948083e-48 | F42: 2.052231562e-48 | G42: 1.136576525e-45 | J42: 2.020160124e-47 | K42: 1.06401907e-47 | L42: 5.825459567e-45 | P42: 0 | Q42: 0 | R42: 0 | S42: 0 | T42: =SUM($S$10:$S43) -> 0 | U42: 0 | W42: 0 | X42: 0 | Y42: 0 | Z42: 0 | AA42: =SUM($Z$11:$Z43) -> 0 | AB42: 0 | AO42: 1.164708861e-50
A43: 170 | B43: 1.753292435e-49 | C43: 2.599133483e-50 | E43: 2.219006833e-47 | F43: 7.386107416e-48 | G43: 3.860180662e-45 | J43: 7.340255474e-47 | K43: 3.823345335e-47 | L43: 1.975389189e-44 | P43: 0 | Q43: 0 | R43: 0 | S43: 0 | T43: =SUM($S$10:$S44) -> 0 | U43: 0 | W43: 0 | X43: 0 | Y43: 0 | Z43: 0 | AA43: =SUM($Z$11:$Z44) -> 0 | AB43: 0 | AO43: 4.537256933e-50
A44: 175 | B44: 6.720480992e-49 | C44: 9.934377113e-50 | E44: 7.996902224e-47 | F44: 2.636907408e-47 | G44: 1.300587903e-44 | J44: 2.645698215e-46 | K44: 1.362784173e-46 | L44: 6.645075951e-44 | P44: 0 | Q44: 0 | R44: 0 | S44: 0 | T44: =SUM($S$10:$S45) -> 0 | U44: 0 | W44: 0 | X44: 0 | Y44: 0 | Z44: 0 | AA44: =SUM($Z$11:$Z45) -> 0 | AB44: 0 | AO44: 1.753292435e-49
A45: 180 | B45: 2.555238176e-48 | C45: 3.766380153e-49 | E45: 2.858808091e-46 | F45: 9.338221828e-47 | G45: 4.347057982e-44 | J45: 9.459619082e-46 | K45: 4.818372386e-46 | L45: 2.217547393e-43 | P45: 0 | Q45: 0 | R45: 0 | S45: 0 | T45: =SUM($S$10:$S46) -> 0 | U45: 0 | W45: 0 | X45: 0 | Y45: 0 | Z45: 0 | AA45: =SUM($Z$11:$Z46) -> 0 | AB45: 0 | AO45: 6.720480992e-49
A46: 185 | B46: 9.637124502e-48 | C46: 1.416377265e-48 | E46: 1.013791205e-45 | F46: 3.280375642e-46 | G46: 1.441369477e-43 | J46: 3.355148101e-45 | K46: 1.689910357e-45 | L46: 7.341291635e-43 | P46: 0 | Q46: 0 | R46: 0 | S46: 0 | T46: =SUM($S$10:$S47) -> 0 | U46: 0 | W46: 0 | X46: 0 | Y46: 0 | Z46: 0 | AA46: =SUM($Z$11:$Z47) -> 0 | AB46: 0 | AO46: 2.555238176e-48
A47: 190 | B47: 3.605359904e-47 | C47: 5.283294907e-48 | E47: 3.566256451e-45 | F47: 1.143070713e-45 | G47: 4.741108624e-43 | J47: 1.180469989e-44 | K47: 5.879187612e-45 | L47: 2.411013283e-42 | P47: 0 | Q47: 0 | R47: 0 | S47: 0 | T47: =SUM($S$10:$S48) -> 0 | U47: 0 | W47: 0 | X47: 0 | Y47: 0 | Z47: 0 | AA47: =SUM($Z$11:$Z48) -> 0 | AB47: 0 | AO47: 9.637124502e-48
A48: 195 | B48: 1.33793456e-46 | C48: 1.95479714e-47 | E48: 1.244449833e-44 | F48: 3.951052354e-45 | G48: 1.547069151e-42 | J48: 4.120063795e-44 | K48: 2.028904721e-44 | L48: 7.855164392e-42 | P48: 0 | Q48: 0 | R48: 0 | S48: 0 | T48: =SUM($S$10:$S49) -> 0 | U48: 0 | W48: 0 | X48: 0 | Y48: 0 | Z48: 0 | AA48: =SUM($Z$11:$Z49) -> 0 | AB48: 0 | AO48: 3.605359904e-47
A49: 200 | B49: 4.924999982e-46 | C49: 7.174130843e-47 | E49: 4.307678e-44 | F49: 1.354698594e-44 | G49: 5.008011674e-42 | J49: 1.42645874e-43 | K49: 6.945396177e-44 | L49: 2.538870379e-41 | P49: 0 | Q49: 0 | R49: 0 | S49: 0 | T49: =SUM($S$10:$S50) -> 0 | U49: 0 | W49: 0 | X49: 0 | Y49: 0 | Z49: 0 | AA49: =SUM($Z$11:$Z50) -> 0 | AB49: 0 | AO49: 1.33793456e-46
A50: 205 | B50: 1.798302419e-45 | C50: 2.611604842e-46 | E50: 1.479143577e-43 | F50: 4.607473275e-44 | G50: 1.608226757e-41 | J50: 4.899156828e-43 | K50: 2.358434443e-43 | L50: 8.140600063e-41 | P50: 0 | Q50: 0 | R50: 0 | S50: 0 | T50: =SUM($S$10:$S51) -> 0 | U50: 0 | W50: 0 | X50: 0 | Y50: 0 | Z50: 0 | AA50: =SUM($Z$11:$Z51) -> 0 | AB50: 0 | AO50: 4.924999982e-46
A51: 210 | B51: 6.513349445e-45 | C51: 9.430094053e-46 | E51: 5.038241075e-43 | F51: =(E52-E50)/(A52-A50) -> 1.554437482e-43 | G51: 5.123375034e-41 | J51: 1.669132904e-42 | K51: 7.944057985e-43 | L51: 2.589429276e-40 | P51: 0 | Q51: 0 | R51: 0 | S51: 0 | T51: =SUM($S$10:$S52) -> 0 | U51: 0 | W51: 0 | X51: 0 | Y51: 0 | Z51: 0 | AA51: =SUM($Z$11:$Z52) -> 0 | AB51: 0 | AO51: 1.798302419e-45
A52: 215 | B52: 2.340082699e-44 | C52: 3.377495509e-45 | E52: 1.702351839e-42 | F52: 5.202044046e-43 | G52: 1.619170206e-40 | J52: 5.641161897e-42 | K52: 2.654319725e-42 | L52: 8.171176287e-40 | P52: 0 | Q52: 0 | R52: 0 | S52: 0 | T52: =SUM($S$10:$S53) -> 0 | U52: 0 | W52: 0 | X52: 0 | Y52: 0 | Z52: 0 | AA52: =SUM($Z$11:$Z53) -> 0 | AB52: 0 | AO52: 6.513349445e-45
A53: 220 | B53: 8.339561777e-44 | C53: 1.199895816e-44 | E53: 5.705868153e-42 | F53: 1.726891935e-42 | G53: 5.076412926e-40 | J53: 1.891276052e-41 | K53: 8.797448644e-42 | L53: 2.557992042e-39 | P53: 0 | Q53: 0 | R53: 0 | S53: 0 | T53: =SUM($S$10:$S54) -> 0 | U53: 0 | W53: 0 | X53: 0 | Y53: 0 | Z53: 0 | AA53: =SUM($Z$11:$Z54) -> 0 | AB53: 0 | AO53: 2.340082699e-44
A54: 225 | B54: 2.948088208e-43 | C54: 4.228264061e-44 | E54: 1.897127119e-41 | F54: 5.686521801e-42 | G54: 1.578883401e-39 | J54: 6.290000374e-41 | K54: 2.892366966e-41 | L54: 7.944180762e-39 | P54: 0 | Q54: 0 | R54: 0 | S54: 0 | T54: =SUM($S$10:$S55) -> 0 | U54: 0 | W54: 0 | X54: 0 | Y54: 0 | Z54: 0 | AA54: =SUM($Z$11:$Z55) -> 0 | AB54: 0 | AO54: 8.339561777e-44
A55: 230 | B55: 1.033767699e-42 | C55: 1.477917756e-43 | E55: 6.257108617e-41 | F55: 1.857456736e-41 | G55: 4.871609481e-39 | J55: 2.07518352e-40 | K55: 9.432866515e-41 | L55: 2.447572984e-38 | P55: 0 | Q55: 0 | R55: 0 | S55: 0 | T55: =SUM($S$10:$S56) -> 0 | U55: 0 | W55: 0 | X55: 0 | Y55: 0 | Z55: 0 | AA55: =SUM($Z$11:$Z56) -> 0 | AB55: 0 | AO55: 2.948088208e-43
A56: 235 | B56: 3.595760068e-42 | C56: 5.123984739e-43 | E56: 2.047169448e-40 | F56: 6.018402042e-41 | G56: 1.491161857e-38 | J56: 6.791616778e-40 | K56: 3.051603844e-40 | L56: 7.481008095e-38 | P56: 0 | Q56: 0 | R56: 0 | S56: 0 | T56: =SUM($S$10:$S57) -> 0 | U56: 0 | W56: 0 | X56: 0 | Y56: 0 | Z56: 0 | AA56: =SUM($Z$11:$Z57) -> 0 | AB56: 0 | AO56: 1.033767699e-42
A57: 240 | B57: 1.240634166e-41 | C57: 1.762116318e-42 | E57: 6.644112904e-40 | F57: 1.93434625e-40 | G57: 4.528012827e-38 | J57: 2.2049636e-39 | K57: 9.792810296e-40 | L57: 2.268422401e-37 | P57: 0 | Q57: 0 | R57: 0 | S57: 0 | T57: =SUM($S$10:$S58) -> 0 | U57: 0 | W57: 0 | X57: 0 | Y57: 0 | Z57: 0 | AA57: =SUM($Z$11:$Z58) -> 0 | AB57: 0 | AO57: 3.595760068e-42
A58: 245 | B58: 4.246020397e-41 | C58: 6.010772462e-42 | E58: 2.139063195e-39 | F58: 6.16705477e-40 | G58: 1.364023011e-37 | J58: 7.101368748e-39 | K58: 3.11732326e-39 | L58: 6.823834766e-37 | P58: 0 | Q58: 0 | R58: 0 | S58: 0 | T58: =SUM($S$10:$S59) -> 0 | U58: 0 | W58: 0 | X58: 0 | Y58: 0 | Z58: 0 | AA58: =SUM($Z$11:$Z59) -> 0 | AB58: 0 | AO58: 1.240634166e-41
A59: 250 | B59: 1.441470453e-40 | C59: 2.033736826e-41 | E59: 6.831466061e-39 | F59: 1.950347526e-39 | G59: 4.076313589e-37 | J59: 2.268798505e-38 | K59: 9.843561723e-39 | L59: 2.036457497e-36 | P59: 0 | Q59: 0 | R59: 0 | S59: 0 | T59: =SUM($S$10:$S60) -> 0 | U59: 0 | W59: 0 | X59: 0 | Y59: 0 | Z59: 0 | AA59: =SUM($Z$11:$Z60) -> 0 | AB59: 0 | AO59: 4.246020397e-41
A60: 255 | B60: 4.85416758e-40 | C60: 6.825394255e-41 | E60: 2.164253846e-38 | F60: 6.118385675e-39 | G60: 1.208498134e-36 | J60: 7.190579366e-38 | K60: 3.08332485e-38 | L60: 6.029288049e-36 | P60: 0 | Q60: 0 | R60: 0 | S60: 0 | T60: =SUM($S$10:$S61) -> 0 | U60: 0 | W60: 0 | X60: 0 | Y60: 0 | Z60: 0 | AA60: =SUM($Z$11:$Z61) -> 0 | AB60: 0 | AO60: 1.441470453e-40
A61: 260 | B61: 1.621470909e-39 | C61: 2.272108301e-40 | E61: 6.801532281e-38 | F61: 1.903936154e-38 | G61: 3.554328533e-36 | J61: 2.260720362e-37 | K61: 9.58039853e-38 | L61: 1.770933175e-35 | P61: 0 | Q61: 0 | R61: 0 | S61: 0 | T61: =SUM($S$10:$S62) -> 0 | U61: 0 | W61: 0 | X61: 0 | Y61: 0 | Z61: 0 | AA61: =SUM($Z$11:$Z62) -> 0 | AB61: 0 | AO61: 4.85416758e-40
A62: 265 | B62: 5.37265502e-39 | C62: 7.502368223e-40 | E62: 2.120361538e-37 | F62: 5.877039851e-38 | G62: 1.037057959e-35 | J62: 7.050919627e-37 | K62: 2.952880536e-37 | L62: 5.160424903e-35 | P62: 0 | Q62: 0 | R62: 0 | S62: 0 | T62: =SUM($S$10:$S63) -> 0 | U62: 0 | W62: 0 | X62: 0 | Y62: 0 | Z62: 0 | AA62: =SUM($Z$11:$Z63) -> 0 | AB62: 0 | AO62: 1.621470909e-39
A63: 270 | B63: 1.765851468e-38 | C63: 2.457171932e-39 | E63: 6.557193079e-37 | F63: 1.799515746e-37 | G63: 3.001809106e-35 | J63: 2.181532231e-36 | K63: 9.028320359e-37 | L63: 1.491824232e-34 | P63: 0 | Q63: 0 | R63: 0 | S63: 0 | T63: =SUM($S$10:$S64) -> 0 | U63: 0 | W63: 0 | X63: 0 | Y63: 0 | Z63: 0 | AA63: =SUM($Z$11:$Z64) -> 0 | AB63: 0 | AO63: 5.37265502e-39
A64: 275 | B64: 5.757114026e-38 | C64: 7.982525116e-39 | E64: 2.0115519e-36 | F64: 5.465670726e-37 | G64: 8.619824216e-35 | J64: 6.69569241e-36 | K64: 2.73821562e-36 | L64: 4.27858917e-34 | P64: 0 | Q64: 0 | R64: 0 | S64: 0 | T64: =SUM($S$10:$S65) -> 0 | U64: 0 | W64: 0 | X64: 0 | Y64: 0 | Z64: 0 | AA64: =SUM($Z$11:$Z65) -> 0 | AB64: 0 | AO64: 1.765851468e-38
A65: 280 | B65: 1.861834015e-37 | C65: 2.572245224e-38 | E65: 6.121390033e-36 | F65: 1.646728916e-36 | G65: 2.455555612e-34 | J65: 2.038677051e-35 | K65: 8.238132765e-36 | L65: 1.217408018e-33 | P65: 0 | Q65: 0 | R65: 0 | S65: 0 | T65: =SUM($S$10:$S66) -> 0 | U65: 0 | W65: 0 | X65: 0 | Y65: 0 | Z65: 0 | AA65: =SUM($Z$11:$Z66) -> 0 | AB65: 0 | AO65: 5.757114026e-38
A66: 285 | B66: 5.972588339e-37 | C66: 8.22150865e-38 | E66: 1.847884106e-35 | F66: 4.921433582e-36 | G66: 6.939655438e-34 | J66: 6.157743433e-35 | K66: 2.458619381e-35 | L66: 3.436579138e-33 | P66: 0 | Q66: 0 | R66: 0 | S66: 0 | T66: =SUM($S$10:$S67) -> 0 | U66: 0 | W66: 0 | X66: 0 | Y66: 0 | Z66: 0 | AA66: =SUM($Z$11:$Z67) -> 0 | AB66: 0 | AO66: 1.861834015e-37
A67: 290 | B67: 1.900508081e-36 | C67: 2.606498493e-37 | E67: 5.533572585e-35 | F67: 1.458989108e-35 | G67: 1.945644838e-33 | J67: 1.845084034e-34 | K67: 7.278739005e-35 | L67: 9.624390273e-33 | P67: 0 | Q67: 0 | R67: 0 | S67: 0 | T67: =SUM($S$10:$S68) -> 0 | U67: 0 | W67: 0 | X67: 0 | Y67: 0 | Z67: 0 | AA67: =SUM($Z$11:$Z68) -> 0 | AB67: 0 | AO67: 5.972588339e-37
A68: 295 | B68: 5.998772612e-36 | C68: 8.196529063e-37 | E68: 1.643777518e-34 | F68: 4.290455575e-35 | G68: 5.411622822e-33 | J68: 5.484453536e-34 | K68: 2.13758966e-34 | L68: 2.674107938e-32 | P68: 0 | Q68: 0 | R68: 0 | S68: 0 | T68: =SUM($S$10:$S69) -> 0 | U68: 0 | W68: 0 | X68: 0 | Y68: 0 | Z68: 0 | AA68: =SUM($Z$11:$Z69) -> 0 | AB68: 0 | AO68: 1.900508081e-36
A69: 300 | B69: 1.878194849e-35 | C69: 2.556635176e-36 | E69: 4.843812833e-34 | F69: 1.251542902e-34 | G69: 1.493243221e-32 | J69: 1.617240184e-33 | K69: 6.227259304e-34 | L69: 7.371327513e-32 | P69: 0 | Q69: 0 | R69: 0 | S69: 0 | T69: =SUM($S$10:$S70) -> 0 | U69: 0 | W69: 0 | X69: 0 | Y69: 0 | Z69: 0 | AA69: =SUM($Z$11:$Z70) -> 0 | AB69: 0 | AO69: 5.998772612e-36
A70: 305 | B70: 5.833167949e-35 | C70: 7.909946199e-36 | E70: 1.415920653e-33 | F70: 3.621421517e-34 | G70: 4.087647727e-32 | J70: 4.730869836e-33 | K70: 1.799596366e-33 | L70: 2.015931983e-31 | P70: 0 | Q70: 0 | R70: 0 | S70: 0 | T70: =SUM($S$10:$S71) -> 0 | U70: 0 | W70: 0 | X70: 0 | Y70: 0 | Z70: 0 | AA70: =SUM($Z$11:$Z71) -> 0 | AB70: 0 | AO70: 1.878194849e-35
A71: 310 | B71: 1.797024226e-34 | C71: 2.427414863e-35 | E71: 4.1058028e-33 | F71: 1.039449632e-33 | G71: 1.110087113e-31 | J71: 1.372885166e-32 | K71: 5.158934374e-33 | L71: 5.469805163e-31 | P71: 0 | Q71: 0 | R71: 0 | S71: 0 | T71: =SUM($S$10:$S72) -> 0 | U71: 0 | W71: 0 | X71: 0 | Y71: 0 | Z71: 0 | AA71: =SUM($Z$11:$Z72) -> 0 | AB71: 0 | AO71: 5.833167949e-35
A72: 315 | B72: 5.491475166e-34 | C72: 7.388901879e-35 | E72: 1.181041697e-32 | F72: 2.959503708e-33 | G72: 2.990764239e-31 | J72: 3.952352353e-32 | K72: 1.467076953e-32 | L72: 1.472435138e-30 | P72: 0 | Q72: 0 | R72: 0 | S72: 0 | T72: =SUM($S$10:$S73) -> 0 | U72: 0 | W72: 0 | X72: 0 | Y72: 0 | Z72: 0 | AA72: =SUM($Z$11:$Z73) -> 0 | AB72: 0 | AO72: 1.797024226e-34
A73: 320 | B73: 1.664599585e-33 | C73: 2.230904137e-34 | E73: 3.370083988e-32 | F73: 8.358443717e-33 | G73: 7.993733371e-31 | J73: 1.128773712e-31 | K73: 4.13861575e-32 | L73: 3.932524581e-30 | P73: 0 | Q73: 0 | R73: 0 | S73: 0 | T73: =SUM($S$10:$S74) -> 0 | U73: 0 | W73: 0 | X73: 0 | Y73: 0 | Z73: 0 | AA73: =SUM($Z$11:$Z74) -> 0 | AB73: 0 | AO73: 5.491475166e-34
A74: 325 | B74: =(($B$4*$B$6*SQRT(PI()/2)*EXP(0.5*($B$4*$B$6)^2-$B$6*(A74-1000))*ERFC((1/SQRT(2))*($B$4*$B$6-((A74-1000)/$B$4))))+$B$3*($B$4*$B$6*SQRT(PI()/2)*EXP(0.5*($B$4*$B$6)^2-$B$6*(A74-1200))*ERFC((1/SQRT(2))*($B$4*$B$6-((A74-1200)/$B$4)))))+$B$5*(RAND()-RAND()+RAND()-RAND()) -> 5.005140029e-33 | C74: 6.681080888e-34 | E74: 9.539485414e-32 | F74: 2.341655915e-32 | G74: 2.119631463e-30 | J74: =B74-($J$5*G74)+($J$4*E74) -> 3.198081587e-31 | K74: 1.158158596e-31 | L74: 1.042030436e-29 | P74: 0 | Q74: 0 | R74: 0 | S74: 0 | T74: =SUM($S$10:$S75) -> 0 | U74: 0 | W74: 0 | X74: 0 | Y74: 0 | Z74: 0 | AA74: =SUM($Z$11:$Z75) -> 0 | AB74: 0 | AO74: =(($B$4*$B$6*SQRT(PI()/2)*EXP(0.5*($B$4*$B$6)^2-$B$6*(A73-1000))*ERFC((1/SQRT(2))*($B$4*$B$6-((A73-1000)/$B$4))))) -> 1.664599585e-33
A75: 330 | B75: 1.492823285e-32 | C75: =(B75-B74)/(A75-A74) -> 1.984618563e-33 | E75: 2.678664314e-31 | F75: =(E76-E74)/(A76-A74) -> 6.507465694e-32 | G75: 5.575902235e-30 | J75: 8.988874565e-31 | K75: 3.215090126e-31 | L75: 2.739465825e-29 | P75: 0 | Q75: 0 | R75: 0 | S75: 0 | T75: =SUM($S$10:$S76) -> 0 | U75: 0 | W75: 0 | X75: 0 | Y75: 0 | Z75: 0 | AA75: =SUM($Z$11:$Z76) -> 0 | AB75: 0 | AO75: 5.005140029e-33
A76: 335 | B76: 4.416582149e-32 | C76: 5.847517729e-33 | E76: 7.461414236e-31 | F76: 1.793873729e-31 | G76: 1.455174004e-29 | J76: 2.506432519e-30 | K76: 8.853846877e-31 | L76: 7.14547076e-29 | P76: =IF(B76>$C$4,1,0) -> 0 | Q76: =IF(SIGN(E75) > SIGN(E76),1,0) -> 0 | R76: =IF((E75 - E76)>$C$6,1,0) -> 0 | S76: =P76*Q76*R76 -> 0 | T76: =SUM($S$10:$S77) -> 0 | U76: =IF(S76,T76,0) -> 0 | W76: =IF(J76>$C$4,1,0) -> 0 | X76: =IF(SIGN(L75) > SIGN(L76),1,0) -> 0 | Y76: =IF((L75 - L76)>$C$6,1,0) -> 0 | Z76: =W76*X76*Y76 -> 0 | AA76: =SUM($Z$11:$Z77) -> 0 | AB76: =IF(Z76,AA76,0) -> 0 | AO76: 1.492823285e-32
A77: 340 | B77: 1.296134277e-31 | C77: 1.708952123e-32 | E77: 2.061740161e-30 | F77: 4.905271509e-31 | G77: 3.767563626e-29 | J77: 6.933355958e-30 | K77: 2.418723546e-30 | L77: 1.849176448e-28 | P77: 0 | Q77: 0 | R77: 0 | S77: 0 | T77: =SUM($S$10:$S78) -> 0 | U77: 0 | W77: 0 | X77: 0 | Y77: 0 | Z77: 0 | AA77: =SUM($Z$11:$Z78) -> 0 | AB77: 0 | AO77: 4.416582149e-32
A78: 345 | B78: 3.773110083e-31 | C78: 4.953951612e-32 | E78: 5.651412933e-30 | F78: 1.330532392e-30 | G78: 9.67727486e-29 | J78: 1.902697369e-29 | K78: 6.554771342e-30 | L78: 4.74800973e-28 | P78: 0 | Q78: 0 | R78: 0 | S78: 0 | T78: =SUM($S$10:$S79) -> 0 | U78: 0 | W78: 0 | X78: 0 | Y78: 0 | Z78: 0 | AA78: =SUM($Z$11:$Z79) -> 0 | AB78: 0 | AO78: 1.296134277e-31
A79: 350 | B79: 1.089518931e-30 | C79: 1.424415846e-31 | E79: 1.536706408e-29 | F79: 3.579967574e-30 | G79: 2.466001351e-28 | J79: 5.18008304e-29 | K79: 1.762169808e-29 | L79: 1.209578072e-27 | P79: 0 | Q79: 0 | R79: 0 | S79: 0 | T79: =SUM($S$10:$S80) -> 0 | U79: 0 | W79: 0 | X79: 0 | Y79: 0 | Z79: 0 | AA79: =SUM($Z$11:$Z80) -> 0 | AB79: 0 | AO79: 3.773110083e-31
A80: 355 | B80: 3.12072814e-30 | C80: 4.062418418e-31 | E80: 4.145108868e-29 | F80: 9.5548526e-30 | G80: 6.234221861e-28 | J80: 1.399093208e-28 | K80: 4.699576921e-29 | L80: 3.057375035e-27 | P80: 0 | Q80: 0 | R80: 0 | S80: 0 | T80: =SUM($S$10:$S81) -> 0 | U80: 0 | W80: 0 | X80: 0 | Y80: 0 | Z80: 0 | AA80: =SUM($Z$11:$Z81) -> 0 | AB80: 0 | AO80: 1.089518931e-30
A81: 360 | B81: 8.866719553e-30 | C81: 1.149198283e-30 | E81: 1.109155901e-28 | F81: 2.529648408e-29 | G81: 1.563582786e-27 | J81: 3.748881668e-28 | K81: 1.243347611e-28 | L81: 7.667602871e-27 | P81: 0 | Q81: 0 | R81: 0 | S81: 0 | T81: =SUM($S$10:$S82) -> 0 | U81: 0 | W81: 0 | X81: 0 | Y81: 0 | Z81: 0 | AA81: =SUM($Z$11:$Z82) -> 0 | AB81: 0 | AO81: 3.12072814e-30
A82: 365 | B82: 2.498940492e-29 | C82: 3.224537073e-30 | E82: =(C74*$L$6+C75*$M$6+C76*$N$6+C77*$O$6+C78*$P$6+C79*$Q$6+C80*$R$6+C81*$S$6+C82*$T$6+C83*$U$6+C84*$V$6+C85*$W$6+C86*$X$6+C87*$Y$6+C88*$Z$6+C89*$AA$6+C90*$AB$6)/SUM($L$6:$AB$6) -> 2.944159295e-28 | F82: 6.643357459e-29 | G82: 3.890542661e-27 | J82: 9.965619721e-28 | K82: 3.263256871e-28 | L82: =(K74*$L$6+K75*$M$6+K76*$N$6+K77*$O$6+K78*$P$6+K79*$Q$6+K80*$R$6+K81*$S$6+K82*$T$6+K83*$U$6+K84*$V$6+K85*$W$6+K86*$X$6+K87*$Y$6+K88*$Z$6+K89*$AA$6+K90*$AB$6)/SUM($L$6:$AB$6) -> 1.907964596e-26 | P82: 0 | Q82: 0 | R82: 0 | S82: 0 | T82: =SUM($S$10:$S83) -> 0 | U82: 0 | W82: 0 | X82: 0 | Y82: 0 | Z82: 0 | AA82: =SUM($Z$11:$Z83) -> 0 | AB82: 0 | AO82: 8.866719553e-30
A83: 370 | B83: 6.986099888e-29 | C83: 8.974318793e-30 | E83: 7.75251336e-28 | F83: 1.730638558e-28 | G83: 9.603978226e-27 | J83: 2.628190408e-27 | K83: 8.496441257e-28 | L83: 4.710691616e-26 | P83: 0 | Q83: 0 | R83: 0 | S83: 0 | T83: =SUM($S$10:$S84) -> 0 | U83: 0 | W83: 0 | X83: 0 | Y83: 0 | Z83: 0 | AA83: =SUM($Z$11:$Z84) -> 0 | AB83: 0 | AO83: 2.498940492e-29
A84: 375 | B84: 1.937312277e-28 | C84: 2.477404576e-29 | E84: 2.025054487e-27 | F84: 4.47215074e-28 | G84: 2.35204086e-26 | J84: 6.876411036e-27 | K84: 2.194584327e-27 | L84: 1.154002372e-25 | P84: 0 | Q84: 0 | R84: 0 | S84: 0 | T84: =SUM($S$10:$S85) -> 0 | U84: 0 | W84: 0 | X84: 0 | Y84: 0 | Z84: 0 | AA84: =SUM($Z$11:$Z85) -> 0 | AB84: 0 | AO84: 6.986099888e-29
A85: 380 | B85: 5.329058183e-28 | C85: 6.783491811e-29 | E85: 5.247402076e-27 | F85: 1.146351492e-27 | G85: 5.714685216e-26 | J85: 1.784933267e-26 | K85: 5.623404611e-27 | L85: 2.805049586e-25 | P85: 0 | Q85: 0 | R85: 0 | S85: 0 | T85: =SUM($S$10:$S86) -> 0 | U85: 0 | W85: 0 | X85: 0 | Y85: 0 | Z85: 0 | AA85: =SUM($Z$11:$Z86) -> 0 | AB85: 0 | AO85: 1.937312277e-28
A86: 385 | B86: 1.454076694e-27 | C86: 1.842341751e-28 | E86: 1.34885694e-26 | F86: 2.914811517e-27 | G86: 1.377509437e-25 | J86: 4.596635572e-26 | K86: 1.42948889e-26 | L86: 6.765353563e-25 | P86: 0 | Q86: 0 | R86: 0 | S86: 0 | T86: =SUM($S$10:$S87) -> 0 | U86: 0 | W86: 0 | X86: 0 | Y86: 0 | Z86: 0 | AA86: =SUM($Z$11:$Z87) -> 0 | AB86: 0 | AO86: 5.329058183e-28
A87: 390 | B87: 3.935593318e-27 | C87: 4.963033249e-28 | E87: 3.439551725e-26 | F87: 7.35181315e-27 | G87: 3.294221164e-25 | J87: 1.174408002e-25 | K87: 3.604950433e-26 | L87: 1.61905283e-24 | P87: 0 | Q87: 0 | R87: 0 | S87: 0 | T87: =SUM($S$10:$S88) -> 0 | U87: 0 | W87: 0 | X87: 0 | Y87: 0 | Z87: 0 | AA87: =SUM($Z$11:$Z88) -> 0 | AB87: 0 | AO87: 1.454076694e-27
A88: 395 | B88: 1.056620894e-26 | C88: 1.326123125e-27 | E88: 8.70067009e-26 | F88: 1.839372739e-26 | G88: 7.815700783e-25 | J88: 2.976883219e-25 | K88: 9.018985064e-26 | L88: 3.844649179e-24 | P88: 0 | Q88: 0 | R88: 0 | S88: 0 | T88: =SUM($S$10:$S89) -> 0 | U88: 0 | W88: 0 | X88: 0 | Y88: 0 | Z88: 0 | AA88: =SUM($Z$11:$Z89) -> 0 | AB88: 0 | AO88: 3.935593318e-27
A89: 400 | B89: 2.813936434e-26 | C89: 3.514631081e-27 | E89: 2.183327911e-25 | F89: 4.564953112e-26 | G89: 1.839675465e-24 | J89: 7.486375751e-25 | K89: 2.238508871e-25 | L89: 9.059043693e-24 | P89: 0 | Q89: 0 | R89: 0 | S89: 0 | T89: =SUM($S$10:$S90) -> 0 | U89: 0 | W89: 0 | X89: 0 | Y89: 0 | Z89: 0 | AA89: =SUM($Z$11:$Z90) -> 0 | AB89: 0 | AO89: 1.056620894e-26
A90: 405 | B90: 7.433537034e-26 | C90: 9.239201199e-27 | E90: 5.435020121e-25 | F90: 1.123813313e-25 | G90: 4.296093917e-24 | J90: 1.86789201e-24 | K90: 5.511956899e-25 | L90: 2.118082428e-23 | P90: 0 | Q90: 0 | R90: 0 | S90: 0 | T90: =SUM($S$10:$S91) -> 0 | U90: 0 | W90: 0 | X90: 0 | Y90: 0 | Z90: 0 | AA90: =SUM($Z$11:$Z91) -> 0 | AB90: 0 | AO90: 2.813936434e-26
A91: 410 | B91: 1.947883168e-25 | C91: 2.409058929e-26 | E91: 1.342146104e-24 | F91: 2.744373897e-25 | G91: 9.953291732e-24 | J91: 4.62387046e-24 | K91: 1.346486007e-24 | L91: 4.914092317e-23 | P91: 0 | Q91: 0 | R91: 0 | S91: 0 | T91: =SUM($S$10:$S92) -> 0 | U91: 0 | W91: 0 | X91: 0 | Y91: 0 | Z91: 0 | AA91: =SUM($Z$11:$Z92) -> 0 | AB91: 0 | AO91: 7.433537034e-26
A92: 415 | B92: 5.063099933e-25 | C92: 6.23043353e-26 | E92: 3.287875909e-24 | F92: 6.64788684e-25 | G92: =(F84*$L$6+F85*$M$6+F86*$N$6+F87*$O$6+F88*$P$6+F89*$Q$6+F90*$R$6+F91*$S$6+F92*$T$6+F93*$U$6+F94*$V$6+F95*$W$6+F96*$X$6+F97*$Y$6+F98*$Z$6+F99*$AA$6+F100*$AB$6)/SUM($L$6:$AB$6) -> 2.28781705e-23 | J92: 1.135630049e-23 | K92: 3.263249289e-24 | L92: 1.13132911e-22 | P92: 0 | Q92: 0 | R92: 0 | S92: 0 | T92: =SUM($S$10:$S93) -> 0 | U92: 0 | W92: 0 | X92: 0 | Y92: 0 | Z92: 0 | AA92: =SUM($Z$11:$Z93) -> 0 | AB92: 0 | AO92: 1.947883168e-25
A93: 420 | B93: 1.305438221e-24 | C93: 1.598256455e-25 | E93: 7.990032944e-24 | F93: 1.597405433e-24 | G93: 5.217213857e-23 | J93: 2.767254694e-23 | K93: 7.846112276e-24 | L93: 2.584551667e-22 | P93: 0 | Q93: 0 | R93: 0 | S93: 0 | T93: =SUM($S$10:$S94) -> 0 | U93: 0 | W93: 0 | X93: 0 | Y93: 0 | Z93: 0 | AA93: =SUM($Z$11:$Z94) -> 0 | AB93: 0 | AO93: 5.063099933e-25
A94: 425 | B94: 3.338738535e-24 | C94: 4.066600628e-25 | E94: 1.926193024e-23 | F94: 3.807482007e-24 | G94: 1.180374961e-22 | J94: 6.690310832e-23 | K94: 1.871622571e-23 | L94: 5.859190911e-22 | P94: 0 | Q94: 0 | R94: 0 | S94: 0 | T94: =SUM($S$10:$S95) -> 0 | U94: 0 | W94: 0 | X94: 0 | Y94: 0 | Z94: 0 | AA94: =SUM($Z$11:$Z95) -> 0 | AB94: 0 | AO94: 1.305438221e-24
A95: 430 | B95: 8.470221901e-24 | C95: 1.026296673e-24 | E95: 4.606485302e-23 | F95: 9.00226271e-24 | G95: 2.64951617e-22 | J95: 1.604842369e-22 | K95: 4.429404051e-23 | L95: 1.318110992e-21 | P95: 0 | Q95: 0 | R95: 0 | S95: 0 | T95: =SUM($S$10:$S96) -> 0 | U95: 0 | W95: 0 | X95: 0 | Y95: 0 | Z95: 0 | AA95: =SUM($Z$11:$Z96) -> 0 | AB95: 0 | AO95: 3.338738535e-24
A96: 435 | B96: 2.131540019e-23 | C96: 2.569035657e-24 | E96: 1.092845573e-22 | F96: 2.111332222e-23 | G96: 5.900375484e-22 | J96: 3.819544394e-22 | K96: 1.040014813e-22 | L96: 2.94261946e-21 | P96: 0 | Q96: 0 | R96: 0 | S96: 0 | T96: =SUM($S$10:$S97) -> 0 | U96: 0 | W96: 0 | X96: 0 | Y96: 0 | Z96: 0 | AA96: =SUM($Z$11:$Z97) -> 0 | AB96: 0 | AO96: 8.470221901e-24
A97: 440 | B97: 5.320819788e-23 | C97: 6.378559538e-24 | E97: 2.571980752e-22 | F97: 4.911933527e-23 | G97: 1.303648432e-21 | J97: 9.019618461e-22 | K97: 2.422730134e-22 | L97: 6.519136178e-21 | P97: 0 | Q97: 0 | R97: 0 | S97: 0 | T97: =SUM($S$10:$S98) -> 0 | U97: 0 | W97: 0 | X97: 0 | Y97: 0 | Z97: 0 | AA97: =SUM($Z$11:$Z98) -> 0 | AB97: 0 | AO97: 2.131540019e-23
A98: 445 | B98: 1.317498101e-22 | C98: 1.570832245e-23 | E98: 6.004779101e-22 | F98: 1.133546478e-22 | G98: 2.857658816e-21 | J98: 2.113326913e-21 | K98: 5.599459265e-22 | L98: 1.433263447e-20 | P98: 0 | Q98: 0 | R98: 0 | S98: 0 | T98: =SUM($S$10:$S99) -> 0 | U98: 0 | W98: 0 | X98: 0 | Y98: 0 | Z98: 0 | AA98: =SUM($Z$11:$Z99) -> 0 | AB98: 0 | AO98: 5.320819788e-23
A99: 450 | B99: 3.235995191e-22 | C99: 3.83699418e-23 | E99: 1.390744554e-21 | F99: 2.594878657e-22 | G99: 6.214849656e-21 | J99: 4.913056546e-21 | K99: 1.28400605e-21 | L99: 3.127147438e-20 | P99: 0 | Q99: 0 | R99: 0 | S99: 0 | T99: =SUM($S$10:$S100) -> 0 | U99: 0 | W99: 0 | X99: 0 | Y99: 0 | Z99: 0 | AA99: =SUM($Z$11:$Z100) -> 0 | AB99: 0 | AO99: 1.317498101e-22
A100: 455 | B100: 7.884101227e-22 | C100: 9.296212072e-23 | E100: 3.195356567e-21 | F100: 5.89230966e-22 | G100: 1.340980826e-20 | J100: 1.133308679e-20 | K100: 2.921275652e-21 | L100: 6.771167089e-20 | P100: 0 | Q100: 0 | R100: 0 | S100: 0 | T100: =SUM($S$10:$S101) -> 0 | U100: 0 | W100: 0 | X100: 0 | Y100: 0 | Z100: 0 | AA100: =SUM($Z$11:$Z101) -> 0 | AB100: 0 | AO100: 3.235995191e-22
A101: 460 | B101: 1.905386149e-21 | C101: 2.233952053e-22 | E101: 7.283054213e-21 | F101: 1.327225637e-21 | G101: 2.870698252e-20 | J101: 2.593946505e-20 | K101: =(J102-J101)/(A101-A100) -> 6.594277347e-21 | L101: 1.455050809e-19 | P101: 0 | Q101: 0 | R101: 0 | S101: 0 | T101: =SUM($S$10:$S102) -> 0 | U101: 0 | W101: 0 | X101: 0 | Y101: 0 | Z101: 0 | AA101: =SUM($Z$11:$Z102) -> 0 | AB101: 0 | AO101: 7.884101227e-22
A102: 465 | B102: 4.567729087e-21 | C102: 5.324685874e-22 | E102: 1.646761294e-20 | F102: 2.965476914e-21 | G102: 6.097150588e-20 | J102: 5.891085179e-20 | K102: 1.476916519e-20 | L102: 3.103122942e-19 | P102: 0 | Q102: 0 | R102: 0 | S102: 0 | T102: =SUM($S$10:$S103) -> 0 | U102: 0 | W102: 0 | X102: 0 | Y102: 0 | Z102: 0 | AA102: =SUM($Z$11:$Z103) -> 0 | AB102: 0 | AO102: 1.905386149e-21
A103: 470 | B103: 1.086186067e-20 | C103: 1.258826317e-21 | E103: 3.693782335e-20 | F103: 6.572563646e-21 | G103: 1.28481938e-19 | J103: 1.327566777e-19 | K103: 3.282039291e-20 | L103: 6.567995693e-19 | P103: 0 | Q103: 0 | R103: 0 | S103: 0 | T103: =SUM($S$10:$S104) -> 0 | U103: 0 | W103: 0 | X103: 0 | Y103: 0 | Z103: 0 | AA103: =SUM($Z$11:$Z104) -> 0 | AB103: 0 | AO103: 4.567729087e-21
A104: 475 | B104: 2.562091924e-20 | C104: 2.951811714e-21 | E104: 8.21932494e-20 | F104: 1.444991825e-20 | G104: 2.686175693e-19 | J104: 2.968586423e-19 | K104: 7.236621576e-20 | L104: 1.379706644e-18 | P104: 0 | Q104: 0 | R104: 0 | S104: 0 | T104: =SUM($S$10:$S105) -> 0 | U104: 0 | W104: 0 | X104: 0 | Y104: 0 | Z104: 0 | AA104: =SUM($Z$11:$Z105) -> 0 | AB104: 0 | AO104: 1.086186067e-20
A105: 480 | B105: 5.994760161e-20 | C105: 6.865336473e-21 | E105: 1.814370059e-19 | F105: 3.151274045e-20 | G105: 5.57192605e-19 | J105: 6.586897211e-19 | K105: 1.583206352e-19 | L105: 2.876522209e-18 | P105: 0 | Q105: 0 | R105: 0 | S105: 0 | T105: =SUM($S$10:$S106) -> 0 | U105: 0 | W105: 0 | X105: 0 | Y105: 0 | Z105: 0 | AA105: =SUM($Z$11:$Z106) -> 0 | AB105: 0 | AO105: 2.562091924e-20
A106: 485 | B106: 1.391347389e-19 | C106: 1.583742747e-20 | E106: 3.973206539e-19 | F106: 6.817057979e-20 | G106: 1.146717117e-18 | J106: 1.450292897e-18 | K106: 3.436799635e-19 | L106: 5.952274219e-18 | P106: 0 | Q106: 0 | R106: 0 | S106: 0 | T106: =SUM($S$10:$S107) -> 0 | U106: 0 | W106: 0 | X106: 0 | Y106: 0 | Z106: 0 | AA106: =SUM($Z$11:$Z107) -> 0 | AB106: 0 | AO106: 5.994760161e-20
A107: 490 | B107: 3.203214621e-19 | C107: 3.623734463e-20 | E107: 8.631428038e-19 | F107: 1.462842806e-19 | G107: 2.341470621e-18 | J107: 3.168692714e-18 | K107: 7.402723385e-19 | L107: 1.222473815e-17 | P107: 0 | Q107: 0 | R107: 0 | S107: 0 | T107: =SUM($S$10:$S108) -> 0 | U107: 0 | W107: 0 | X107: 0 | Y107: 0 | Z107: 0 | AA107: =SUM($Z$11:$Z108) -> 0 | AB107: 0 | AO107: 1.391347389e-19
A108: 495 | B108: 7.315149903e-19 | C108: 8.223870564e-20 | E108: 1.86016346e-18 | F108: 3.113780519e-19 | G108: 4.743556257e-18 | J108: 6.870054407e-18 | K108: 1.582177346e-18 | L108: 2.491981993e-17 | P108: 0 | Q108: 0 | R108: 0 | S108: 0 | T108: =SUM($S$10:$S109) -> 0 | U108: 0 | W108: 0 | X108: 0 | Y108: 0 | Z108: 0 | AA108: =SUM($Z$11:$Z109) -> 0 | AB108: 0 | AO108: 3.203214621e-19
A109: 500 | B109: 1.657094172e-18 | C109: 1.851158363e-19 | E109: 3.976923323e-18 | F109: 6.574576563e-19 | G109: 9.534628881e-18 | J109: 1.478094114e-17 | K109: 3.355451498e-18 | L109: 5.042039402e-17 | P109: 0 | Q109: 0 | R109: 0 | S109: 0 | T109: =SUM($S$10:$S110) -> 0 | U109: 0 | W109: 0 | X109: 0 | Y109: 0 | Z109: 0 | AA109: =SUM($Z$11:$Z110) -> 0 | AB109: 0 | AO109: 7.315149903e-19
A110: 505 | B110: 3.72355655e-18 | C110: 4.132924756e-19 | E110: 8.434740023e-18 | F110: 1.377009063e-18 | G110: 1.9014697e-17 | J110: 3.155819862e-17 | K110: 7.061303361e-18 | L110: 1.012583602e-16 | P110: 0 | Q110: 0 | R110: 0 | S110: 0 | T110: =SUM($S$10:$S111) -> 0 | U110: 0 | W110: 0 | X110: 0 | Y110: 0 | Z110: 0 | AA110: =SUM($Z$11:$Z111) -> 0 | AB110: 0 | AO110: 1.657094172e-18
A111: 510 | B111: 8.299569369e-18 | C111: 9.152025638e-19 | E111: 1.774701396e-17 | F111: 2.860847966e-18 | G111: 3.762377737e-17 | J111: 6.686471543e-17 | K111: 1.474561549e-17 | L111: 2.018488041e-16 | P111: 0 | Q111: 0 | R111: 0 | S111: 0 | T111: =SUM($S$10:$S112) -> 0 | U111: 0 | W111: 0 | X111: 0 | Y111: 0 | Z111: 0 | AA111: =SUM($Z$11:$Z112) -> 0 | AB111: 0 | AO111: 3.72355655e-18
A112: 515 | B112: 1.835016793e-17 | C112: 2.010119713e-18 | E112: 3.704321968e-17 | F112: 5.895782456e-18 | G112: 7.386254283e-17 | J112: 1.405927929e-16 | K112: 3.05556258e-17 | L112: 3.993920368e-16 | P112: 0 | Q112: 0 | R112: 0 | S112: 0 | T112: =SUM($S$10:$S113) -> 0 | U112: 0 | W112: 0 | X112: 0 | Y112: 0 | Z112: 0 | AA112: =SUM($Z$11:$Z113) -> 0 | AB112: 0 | AO112: 8.299569369e-18
A113: 520 | B113: 4.024495475e-17 | C113: 4.378957363e-18 | E113: 7.670483852e-17 | F113: 1.205248258e-17 | G113: 1.43872071e-16 | J113: 2.933709219e-16 | K113: 6.283127594e-17 | L113: 7.844365158e-16 | P113: 0 | Q113: 0 | R113: 0 | S113: 0 | T113: =SUM($S$10:$S114) -> 0 | U113: 0 | W113: 0 | X113: 0 | Y113: 0 | Z113: 0 | AA113: =SUM($Z$11:$Z114) -> 0 | AB113: 0 | AO113: 1.835016793e-17
A114: 525 | B114: 8.755275134e-17 | C114: 9.461559318e-18 | E114: 1.575680455e-16 | F114: 2.443991193e-17 | G114: 2.780485481e-16 | J114: 6.075273016e-16 | K114: 1.282103893e-16 | L114: 1.529355905e-15 | P114: 0 | Q114: 0 | R114: 0 | S114: 0 | T114: =SUM($S$10:$S115) -> 0 | U114: 0 | W114: 0 | X114: 0 | Y114: 0 | Z114: 0 | AA114: =SUM($Z$11:$Z115) -> 0 | AB114: 0 | AO114: 4.024495475e-17
A115: 530 | B115: 1.889361869e-16 | C115: 2.027668712e-17 | E115: 3.211039578e-16 | F115: 4.915984047e-17 | G115: 5.331607652e-16 | J115: 1.248579248e-15 | K115: 2.59620783e-16 | L115: 2.959775554e-15 | P115: 0 | Q115: 0 | R115: 0 | S115: 0 | T115: =SUM($S$10:$S116) -> 0 | U115: 0 | W115: 0 | X115: 0 | Y115: 0 | Z115: 0 | AA115: =SUM($Z$11:$Z116) -> 0 | AB115: 0 | AO115: 8.755275134e-17
A116: 535 | B116: 4.044338768e-16 | C116: 4.309953797e-17 | E116: 6.491664502e-16 | F116: 9.808635783e-17 | G116: 1.01435662e-15 | J116: 2.546683163e-15 | K116: 5.217120315e-16 | L116: 5.686112125e-15 | P116: 0 | Q116: 0 | R116: 0 | S116: 0 | T116: =SUM($S$10:$S117) -> 0 | U116: 0 | W116: 0 | X116: 0 | Y116: 0 | Z116: 0 | AA116: =SUM($Z$11:$Z117) -> 0 | AB116: 0 | AO116: 1.889361869e-16
A117: 540 | B117: 8.587504509e-16 | C117: 9.086331482e-17 | E117: 1.301967536e-15 | F117: 1.941304426e-16 | G117: 1.914783191e-15 | J117: 5.15524332e-15 | K117: 1.040407947e-15 | L117: 1.084389535e-14 | P117: 0 | Q117: 0 | R117: 0 | S117: 0 | T117: =SUM($S$10:$S118) -> 0 | U117: 0 | W117: 0 | X117: 0 | Y117: 0 | Z117: 0 | AA117: =SUM($Z$11:$Z118) -> 0 | AB117: 0 | AO117: 4.044338768e-16
A118: 545 | B118: 1.808729163e-15 | C118: 1.899957425e-16 | E118: 2.590470876e-15 | F118: 3.811229615e-16 | G118: 3.586299155e-15 | J118: 1.035728306e-14 | K118: 2.059036739e-15 | L118: 2.05293471e-14 | P118: 0 | Q118: 0 | R118: 0 | S118: 0 | T118: =SUM($S$10:$S119) -> 0 | U118: 0 | W118: 0 | X118: 0 | Y118: 0 | Z118: 0 | AA118: =SUM($Z$11:$Z119) -> 0 | AB118: 0 | AO118: 8.587504509e-16
A119: 550 | B119: 3.778916151e-15 | C119: 3.940373975e-16 | E119: 5.113197151e-15 | F119: 7.422026826e-16 | G119: 6.664581752e-15 | J119: 2.065246675e-14 | K119: 4.044066711e-15 | L119: 3.858258731e-14 | P119: 0 | Q119: 0 | R119: 0 | S119: 0 | T119: =SUM($S$10:$S120) -> 0 | U119: 0 | W119: 0 | X119: 0 | Y119: 0 | Z119: 0 | AA119: =SUM($Z$11:$Z120) -> 0 | AB119: 0 | AO119: 1.808729163e-15
A120: 555 | B120: 7.831557889e-15 | C120: 8.105283475e-16 | E120: 1.00124977e-14 | F120: 1.433723223e-15 | G120: 1.228853932e-14 | J120: 4.087280031e-14 | K120: 7.882652351e-15 | L120: 7.198469931e-14 | P120: 0 | Q120: 0 | R120: 0 | S120: 0 | T120: =SUM($S$10:$S121) -> 0 | U120: 0 | W120: 0 | X120: 0 | Y120: 0 | Z120: 0 | AA120: =SUM($Z$11:$Z121) -> 0 | AB120: 0 | AO120: 3.778916151e-15
A121: 560 | B121: 1.60996451e-14 | C121: 1.653617443e-15 | E121: 1.945042938e-14 | F121: 2.747216771e-15 | G121: 2.248174891e-14 | J121: 8.028606206e-14 | K121: 1.524867939e-14 | L121: 1.333299383e-13 | P121: 0 | Q121: 0 | R121: 0 | S121: 0 | T121: =SUM($S$10:$S122) -> 0 | U121: 0 | W121: 0 | X121: 0 | Y121: 0 | Z121: 0 | AA121: =SUM($Z$11:$Z122) -> 0 | AB121: 0 | AO121: 7.831557889e-15
A122: 565 | B122: 3.283006313e-14 | C122: 3.346083604e-15 | E122: 3.748466542e-14 | F122: 5.221613382e-15 | G122: 4.080974288e-14 | J122: 1.56529459e-13 | K122: 2.927545792e-14 | L122: 2.451655934e-13 | P122: 0 | Q122: 0 | R122: 0 | S122: 0 | T122: =SUM($S$10:$S123) -> 0 | U122: 0 | W122: 0 | X122: 0 | Y122: 0 | Z122: 0 | AA122: =SUM($Z$11:$Z123) -> 0 | AB122: 0 | AO122: 1.60996451e-14
A123: 570 | B123: 6.640709004e-14 | C123: 6.715405384e-15 | E123: 7.16665632e-14 | F123: 9.844643251e-15 | G123: 7.35026523e-14 | J123: 3.029067486e-13 | K123: 5.578178344e-14 | L123: 4.475495729e-13 | P123: 0 | Q123: 0 | R123: 0 | S123: 0 | T123: =SUM($S$10:$S124) -> 0 | U123: 0 | W123: 0 | X123: 0 | Y123: 0 | Z123: 0 | AA123: =SUM($Z$11:$Z124) -> 0 | AB123: 0 | AO123: 3.283006313e-14
A124: 575 | B124: 1.332430427e-13 | C124: 1.336719052e-14 | E124: 1.359310979e-13 | F124: 1.841102616e-14 | G124: 1.313557155e-13 | J124: 5.818156658e-13 | K124: 1.054881686e-13 | L124: 8.111060722e-13 | P124: 0 | Q124: 0 | R124: 0 | S124: 0 | T124: =SUM($S$10:$S125) -> 0 | U124: 0 | W124: 0 | X124: 0 | Y124: 0 | Z124: 0 | AA124: =SUM($Z$11:$Z125) -> 0 | AB124: 0 | AO124: 6.640709004e-14
A125: 580 | B125: 2.651929872e-13 | C125: 2.638998891e-14 | E125: 2.557768248e-13 | F125: 3.415371448e-14 | G125: 2.3291805e-13 | J125: 1.109256509e-12 | K125: 1.979898628e-13 | L125: 1.459398125e-12 | P125: 0 | Q125: 0 | R125: 0 | S125: 0 | T125: =SUM($S$10:$S126) -> 0 | U125: 0 | W125: 0 | X125: 0 | Y125: 0 | Z125: 0 | AA125: =SUM($Z$11:$Z126) -> 0 | AB125: 0 | AO125: 1.332430427e-13
A126: 585 | B126: 5.235606222e-13 | C126: 5.167352699e-14 | E126: 4.774682427e-13 | F126: 6.28461903e-14 | G126: 4.097952165e-13 | J126: 2.099205823e-12 | K126: 3.688203842e-13 | L126: 2.606957274e-12 | P126: 0 | Q126: 0 | R126: 0 | S126: 0 | T126: =SUM($S$10:$S127) -> 0 | U126: 0 | W126: 0 | X126: 0 | Y126: 0 | Z126: 0 | AA126: =SUM($Z$11:$Z127) -> 0 | AB126: 0 | AO126: 2.651929872e-13
A127: 590 | B127: 1.025319943e-12 | C127: 1.003518641e-13 | E127: 8.842387278e-13 | F127: 1.147096857e-13 | G127: 7.153877702e-13 | J127: 3.943307744e-12 | K127: 6.819055832e-13 | L127: 4.623405837e-12 | P127: 0 | Q127: 0 | R127: 0 | S127: 0 | T127: =SUM($S$10:$S128) -> 0 | U127: 0 | W127: 0 | X127: 0 | Y127: 0 | Z127: 0 | AA127: =SUM($Z$11:$Z128) -> 0 | AB127: 0 | AO127: 5.235606222e-13
A128: 595 | B128: 1.991770832e-12 | C128: 1.932901778e-13 | E128: 1.6245651e-12 | F128: 2.076827014e-13 | G128: 1.239162606e-12 | J128: 7.35283566e-12 | K128: 1.251339687e-12 | L128: 8.140698201e-12 | P128: 0 | Q128: 0 | R128: 0 | S128: 0 | T128: =SUM($S$10:$S129) -> 0 | U128: 0 | W128: 0 | X128: 0 | Y128: 0 | Z128: 0 | AA128: =SUM($Z$11:$Z129) -> 0 | AB128: 0 | AO128: 1.025319943e-12
A129: 600 | B129: 3.838017146e-12 | C129: 3.692492629e-13 | E129: 2.961065742e-12 | F129: 3.729739984e-13 | G129: 2.129749217e-12 | J129: 1.360953409e-11 | K129: 2.279143843e-12 | L129: 1.423101746e-11 | P129: 0 | Q129: 0 | R129: 0 | S129: 0 | T129: =SUM($S$10:$S130) -> 0 | U129: 0 | W129: 0 | X129: 0 | Y129: 0 | Z129: 0 | AA129: =SUM($Z$11:$Z130) -> 0 | AB129: 0 | AO129: 1.991770832e-12
A130: 605 | B130: 7.336046534e-12 | C130: 6.996058776e-13 | E130: 5.354305084e-12 | F130: 6.644060737e-13 | G130: 3.631977707e-12 | J130: 2.500525331e-11 | K130: 4.12019051e-12 | L130: 2.469946697e-11 | P130: 0 | Q130: 0 | R130: 0 | S130: 0 | T130: =SUM($S$10:$S131) -> 0 | U130: 0 | W130: 0 | X130: 0 | Y130: 0 | Z130: 0 | AA130: =SUM($Z$11:$Z131) -> 0 | AB130: 0 | AO130: 3.838017146e-12
A131: 610 | B131: 1.390928848e-11 | C131: 1.31464839e-12 | E131: 9.605126479e-12 | F131: 1.173989325e-12 | G131: 6.14573047e-12 | J131: 4.560620586e-11 | K131: 7.392902364e-12 | L131: 4.256167894e-11 | P131: 0 | Q131: 0 | R131: 0 | S131: 0 | T131: =SUM($S$10:$S132) -> 0 | U131: 0 | W131: 0 | X131: 0 | Y131: 0 | Z131: 0 | AA131: =SUM($Z$11:$Z132) -> 0 | AB131: 0 | AO131: 7.336046534e-12
A132: 615 | B132: 2.615986319e-11 | C132: 2.450114941e-12 | E132: 1.709419833e-11 | F132: 2.057637304e-12 | G132: 1.031859308e-11 | J132: 8.257071768e-11 | K132: 1.316640945e-11 | L132: 7.281673325e-11 | P132: 0 | Q132: 0 | R132: 0 | S132: 0 | T132: =SUM($S$10:$S133) -> 0 | U132: 0 | W132: 0 | X132: 0 | Y132: 0 | Z132: 0 | AA132: =SUM($Z$11:$Z133) -> 0 | AB132: 0 | AO132: 1.390928848e-11
A133: 620 | B133: 4.880381653e-11 | C133: 4.528790667e-12 | E133: 3.018149952e-11 | F133: 3.577223868e-12 | G133: 1.719036227e-11 | J133: 1.484027649e-10 | K133: 2.32742966e-11 | L133: 1.236875943e-10 | P133: 0 | Q133: 0 | R133: 0 | S133: 0 | T133: =SUM($S$10:$S134) -> 0 | U133: 0 | W133: 0 | X133: 0 | Y133: 0 | Z133: 0 | AA133: =SUM($Z$11:$Z134) -> 0 | AB133: 0 | AO133: 2.615986319e-11
A134: 625 | B134: 9.031500581e-11 | C134: 8.302237857e-12 | E134: 5.286643701e-11 | F134: 6.168710731e-12 | G134: 2.841632866e-11 | J134: 2.647742479e-10 | K134: 4.083609271e-11 | L134: 2.085952187e-10 | P134: 0 | Q134: 0 | R134: 0 | S134: 0 | T134: =SUM($S$10:$S135) -> 0 | U134: 0 | W134: 0 | X134: 0 | Y134: 0 | Z134: 0 | AA134: =SUM($Z$11:$Z135) -> 0 | AB134: 0 | AO134: 4.880381653e-11
A135: 630 | B135: 1.657883089e-10 | C135: 1.509466062e-11 | E135: 9.186860683e-11 | F135: 1.055144462e-11 | G135: 4.66090253e-11 | J135: 4.689547115e-10 | K135: 7.111664295e-11 | L135: 3.492738382e-10 | P135: 0 | Q135: 0 | R135: 0 | S135: 0 | T135: =SUM($S$10:$S136) -> 0 | U135: 0 | W135: 0 | X135: 0 | Y135: 0 | Z135: 0 | AA135: =SUM($Z$11:$Z136) -> 0 | AB135: 0 | AO135: 9.031500581e-11
A136: 635 | B136: 3.018810117e-10 | C136: 2.721854056e-11 | E136: 1.583808832e-10 | F136: 1.790180307e-11 | G136: 7.585632373e-11 | J136: 8.245379262e-10 | K136: 1.229301001e-10 | L136: 5.80645419e-10 | P136: 0 | Q136: 0 | R136: 0 | S136: 0 | T136: =SUM($S$10:$S137) -> 0 | U136: 0 | W136: 0 | X136: 0 | Y136: 0 | Z136: 0 | AA136: =SUM($Z$11:$Z137) -> 0 | AB136: 0 | AO136: 1.657883089e-10
A137: 640 | B137: 5.452625229e-10 | C137: 4.867630223e-11 | E137: 2.708866375e-10 | F137: 3.012637705e-11 | G137: 1.224993394e-10 | J137: 1.439188427e-09 | K137: 2.109138133e-10 | L137: 9.583815119e-10 | P137: 0 | Q137: 0 | R137: 0 | S137: 0 | T137: =SUM($S$10:$S138) -> 0 | U137: 0 | W137: 0 | X137: 0 | Y137: 0 | Z137: 0 | AA137: =SUM($Z$11:$Z138) -> 0 | AB137: 0 | AO137: 3.018810117e-10
A138: 645 | B138: =(($B$4*$B$6*SQRT(PI()/2)*EXP(0.5*($B$4*$B$6)^2-$B$6*(A138-1000))*ERFC((1/SQRT(2))*($B$4*$B$6-((A138-1000)/$B$4))))+$B$3*($B$4*$B$6*SQRT(PI()/2)*EXP(0.5*($B$4*$B$6)^2-$B$6*(A138-1200))*ERFC((1/SQRT(2))*($B$4*$B$6-((A138-1200)/$B$4)))))+$B$5*(RAND()-RAND()+RAND()-RAND()) -> 9.769301363e-10 | C138: 8.633352269e-11 | E138: 4.596446536e-10 | F138: 5.028750645e-11 | G138: 1.962891108e-10 | J138: =B138-($J$5*G138)+($J$4*E138) -> 2.493757493e-09 | K138: 3.591789564e-10 | L138: 1.570532975e-09 | P138: 0 | Q138: 0 | R138: 0 | S138: 0 | T138: =SUM($S$10:$S139) -> 0 | U138: 0 | W138: 0 | X138: 0 | Y138: 0 | Z138: 0 | AA138: =SUM($Z$11:$Z139) -> 0 | AB138: 0 | AO138: =(($B$4*$B$6*SQRT(PI()/2)*EXP(0.5*($B$4*$B$6)^2-$B$6*(A137-1000))*ERFC((1/SQRT(2))*($B$4*$B$6-((A137-1000)/$B$4))))) -> 5.452625229e-10
A139: 650 | B139: 1.736238658e-09 | C139: =(B139-B138)/(A139-A138) -> 1.518617044e-10 | E139: 7.73761702e-10 | F139: =(E140-E138)/(A140-A138) -> 8.325953104e-11 | G139: 3.120896269e-10 | J139: 4.289652275e-09 | K139: 6.071198906e-10 | L139: 2.555260228e-09 | P139: 0 | Q139: 0 | R139: 0 | S139: 0 | T139: =SUM($S$10:$S140) -> 0 | U139: 0 | W139: 0 | X139: 0 | Y139: 0 | Z139: 0 | AA139: =SUM($Z$11:$Z140) -> 0 | AB139: 0 | AO139: 9.769301363e-10
A140: 655 | B140: 3.060859847e-09 | C140: 2.649242377e-10 | E140: 1.292239964e-09 | F140: 1.367306548e-10 | G140: 4.923603884e-10 | J140: 7.325251728e-09 | K140: 1.01857676e-09 | L140: 4.12762655e-09 | P140: =IF(B140>$C$4,1,0) -> 0 | Q140: =IF(SIGN(E139) > SIGN(E140),1,0) -> 0 | R140: =IF((E139 - E140)>$C$6,1,0) -> 0 | S140: =P140*Q140*R140 -> 0 | T140: =SUM($S$10:$S141) -> 0 | U140: =IF(S140,T140,0) -> 0 | W140: =IF(J140>$C$4,1,0) -> 0 | X140: =IF(SIGN(L139) > SIGN(L140),1,0) -> 0 | Y140: =IF((L139 - L140)>$C$6,1,0) -> 0 | Z140: =W140*X140*Y140 -> 0 | AA140: =SUM($Z$11:$Z141) -> 0 | AB140: =IF(Z140,AA140,0) -> 0 | AO140: 1.736238658e-09
A141: 660 | B141: 5.352610301e-09 | C141: 4.583500909e-10 | E141: 2.14106825e-09 | F141: 2.227168627e-10 | G141: 7.70738949e-10 | J141: 1.241813553e-08 | K141: 1.696157379e-09 | L141: 6.619727355e-09 | P141: 0 | Q141: 0 | R141: 0 | S141: 0 | T141: =SUM($S$10:$S142) -> 0 | U141: 0 | W141: 0 | X141: 0 | Y141: 0 | Z141: 0 | AA141: =SUM($Z$11:$Z142) -> 0 | AB141: 0 | AO141: 3.060859847e-09
A142: 665 | B142: 9.284874071e-09 | C142: 7.86452754e-10 | E142: 3.519408591e-09 | F142: 3.5982601e-10 | G142: 1.197158087e-09 | J142: 2.089892242e-08 | K142: 2.803420946e-09 | L142: 1.054025296e-08 | P142: 0 | Q142: 0 | R142: 0 | S142: 0 | T142: =SUM($S$10:$S143) -> 0 | U142: 0 | W142: 0 | X142: 0 | Y142: 0 | Z142: 0 | AA142: =SUM($Z$11:$Z143) -> 0 | AB142: 0 | AO142: 5.352610301e-09
A143: 670 | B143: 1.59762436e-08 | C143: 1.338273905e-09 | E143: 5.73932835e-09 | F143: 5.766084178e-10 | G143: 1.84507926e-09 | J143: 3.491602715e-08 | K143: 4.598924794e-09 | L143: 1.666209127e-08 | P143: 0 | Q143: 0 | R143: 0 | S143: 0 | T143: =SUM($S$10:$S144) -> 0 | U143: 0 | W143: 0 | X143: 0 | Y143: 0 | Z143: 0 | AA143: =SUM($Z$11:$Z144) -> 0 | AB143: 0 | AO143: 9.284874071e-09
A144: 675 | B144: 2.726852498e-08 | C144: 2.258456277e-09 | E144: 9.28549277e-09 | F144: 9.164627882e-10 | G144: 2.821609737e-09 | J144: 5.791065112e-08 | K144: 7.48799433e-09 | L144: 2.614998199e-08 | P144: 0 | Q144: 0 | R144: 0 | S144: 0 | T144: =SUM($S$10:$S145) -> 0 | U144: 0 | W144: 0 | X144: 0 | Y144: 0 | Z144: 0 | AA144: =SUM($Z$11:$Z145) -> 0 | AB144: 0 | AO144: 1.59762436e-08
A145: 680 | B145: 4.61675672e-08 | C145: 3.779808445e-09 | E145: 1.490395623e-08 | F145: 1.444741991e-09 | G145: 4.281500913e-09 | J145: 9.535062277e-08 | K145: 1.210070378e-08 | L145: 4.074479294e-08 | P145: 0 | Q145: 0 | R145: 0 | S145: 0 | T145: =SUM($S$10:$S146) -> 0 | U145: 0 | W145: 0 | X145: 0 | Y145: 0 | Z145: 0 | AA145: =SUM($Z$11:$Z146) -> 0 | AB145: 0 | AO145: 2.726852498e-08
A146: 685 | B146: 7.753552981e-08 | C146: 6.273592521e-09 | E146: =(C138*$L$6+C139*$M$6+C140*$N$6+C141*$O$6+C142*$P$6+C143*$Q$6+C144*$R$6+C145*$S$6+C146*$T$6+C147*$U$6+C148*$V$6+C149*$W$6+C150*$X$6+C151*$Y$6+C152*$Z$6+C153*$AA$6+C154*$AB$6)/SUM($L$6:$AB$6) -> 2.373291268e-08 | F146: 2.258932294e-09 | G146: 6.446304002e-09 | J146: 1.558541416e-07 | K146: 1.940822129e-08 | L146: =(K138*$L$6+K139*$M$6+K140*$N$6+K141*$O$6+K142*$P$6+K143*$Q$6+K144*$R$6+K145*$S$6+K146*$T$6+K147*$U$6+K148*$V$6+K149*$W$6+K150*$X$6+K151*$Y$6+K152*$Z$6+K153*$AA$6+K154*$AB$6)/SUM($L$6:$AB$6) -> 6.302700532e-08 | P146: 0 | Q146: 0 | R146: 0 | S146: 0 | T146: =SUM($S$10:$S147) -> 0 | U146: 0 | W146: 0 | X146: 0 | Y146: 0 | Z146: 0 | AA146: =SUM($Z$11:$Z147) -> 0 | AB146: 0 | AO146: 4.61675672e-08
A147: 690 | B147: 1.291674269e-07 | C147: 1.032637941e-08 | E147: 3.749327917e-08 | F147: 3.503072347e-09 | G147: 9.630288437e-09 | J147: 2.528952481e-07 | K147: 3.089471771e-08 | L147: 9.678981369e-08 | P147: 0 | Q147: 0 | R147: 0 | S147: 0 | T147: =SUM($S$10:$S148) -> 0 | U147: 0 | W147: 0 | X147: 0 | Y147: 0 | Z147: 0 | AA147: =SUM($Z$11:$Z148) -> 0 | AB147: 0 | AO147: 7.753552981e-08
A148: 695 | B148: 2.134488374e-07 | C148: 1.685628211e-08 | E148: 5.876363615e-08 | F148: 5.387944546e-09 | G148: 1.427510546e-08 | J148: 4.073688367e-07 | K148: 4.880888415e-08 | L148: 1.475622431e-07 | P148: 0 | Q148: 0 | R148: 0 | S148: 0 | T148: =SUM($S$10:$S149) -> 0 | U148: 0 | W148: 0 | X148: 0 | Y148: 0 | Z148: 0 | AA148: =SUM($Z$11:$Z149) -> 0 | AB148: 0 | AO148: 1.291674269e-07
A149: 700 | B149: 3.498832662e-07 | C149: 2.728688575e-08 | E149: 9.137272463e-08 | F149: 8.219019038e-09 | G149: 2.099559603e-08 | J149: 6.514132574e-07 | K149: 7.652825383e-08 | L149: 2.233352419e-07 | P149: 0 | Q149: 0 | R149: 0 | S149: 0 | T149: =SUM($S$10:$S150) -> 0 | U149: 0 | W149: 0 | X149: 0 | Y149: 0 | Z149: 0 | AA149: =SUM($Z$11:$Z150) -> 0 | AB149: 0 | AO149: 2.134488374e-07
A150: 705 | B150: 5.68906899e-07 | C150: 4.380472657e-08 | E150: 1.409538265e-07 | F150: 1.243466288e-08 | G150: 3.063958119e-08 | J150: 1.034054527e-06 | K150: 1.190815573e-07 | L150: 3.35559174e-07 | P150: 0 | Q150: 0 | R150: 0 | S150: 0 | T150: =SUM($S$10:$S151) -> 0 | U150: 0 | W150: 0 | X150: 0 | Y150: 0 | Z150: 0 | AA150: =SUM($Z$11:$Z151) -> 0 | AB150: 0 | AO150: 3.498832662e-07
A151: 710 | B151: 9.175884466e-07 | C151: 6.973630951e-08 | E151: 2.157193535e-07 | F151: 1.865773958e-08 | G151: 4.436490538e-08 | J151: 1.629462313e-06 | K151: 1.838898966e-07 | L151: 5.004997773e-07 | P151: 0 | Q151: 0 | R151: 0 | S151: 0 | T151: =SUM($S$10:$S152) -> 0 | U151: 0 | W151: 0 | X151: 0 | Y151: 0 | Z151: 0 | AA151: =SUM($Z$11:$Z152) -> 0 | AB151: 0 | AO151: 5.68906899e-07
A152: 715 | B152: 1.468058762e-06 | C152: 1.100940631e-07 | E152: 3.275312223e-07 | F152: 2.776440177e-08 | G152: 6.373738677e-08 | J152: 2.548911796e-06 | K152: 2.818072585e-07 | L152: 7.410615688e-07 | P152: 0 | Q152: 0 | R152: 0 | S152: 0 | T152: =SUM($S$10:$S153) -> 0 | U152: 0 | W152: 0 | X152: 0 | Y152: 0 | Z152: 0 | AA152: =SUM($Z$11:$Z153) -> 0 | AB152: 0 | AO152: 9.175884466e-07
A153: 720 | B153: 2.329848964e-06 | C153: 1.723580403e-07 | E153: 4.933633711e-07 | F153: 4.097459076e-08 | G153: 9.085360181e-08 | J153: 3.957948088e-06 | K153: 4.285654108e-07 | L153: 1.089212704e-06 | P153: 0 | Q153: 0 | R153: 0 | S153: 0 | T153: =SUM($S$10:$S154) -> 0 | U153: 0 | W153: 0 | X153: 0 | Y153: 0 | Z153: 0 | AA153: =SUM($Z$11:$Z154) -> 0 | AB153: 0 | AO153: 1.468058762e-06
A154: 725 | B154: 3.667760614e-06 | C154: 2.6758233e-07 | E154: 7.372771299e-07 | F154: 5.996944716e-08 | G154: 1.284925163e-07 | J154: 6.100775142e-06 | K154: 6.467579931e-07 | L154: 1.589172876e-06 | P154: 0 | Q154: 0 | R154: 0 | S154: 0 | T154: =SUM($S$10:$S155) -> 0 | U154: 0 | W154: 0 | X154: 0 | Y154: 0 | Z154: 0 | AA154: =SUM($Z$11:$Z155) -> 0 | AB154: 0 | AO154: 2.329848964e-06
A155: 730 | B155: 5.727474227e-06 | C155: 4.119427226e-07 | E155: 1.093057843e-06 | F155: 8.704142723e-08 | G155: 1.802997709e-07 | J155: 9.334565108e-06 | K155: 9.685338039e-07 | L155: 2.301554857e-06 | P155: 0 | Q155: 0 | R155: 0 | S155: 0 | T155: =SUM($S$10:$S156) -> 0 | U155: 0 | W155: 0 | X155: 0 | Y155: 0 | Z155: 0 | AA155: =SUM($Z$11:$Z156) -> 0 | AB155: 0 | AO155: 3.667760614e-06
A156: 735 | B156: 8.8718525e-06 | C156: 6.288756546e-07 | E156: 1.607691402e-06 | F156: 1.252832966e-07 | G156: =(F148*$L$6+F149*$M$6+F150*$N$6+F151*$O$6+F152*$P$6+F153*$Q$6+F154*$R$6+F155*$S$6+F156*$T$6+F157*$U$6+F158*$V$6+F159*$W$6+F160*$X$6+F161*$Y$6+F162*$Z$6+F163*$AA$6+F164*$AB$6)/SUM($L$6:$AB$6) -> 2.510078166e-07 | J156: 1.417723413e-05 | K156: 1.439209563e-06 | L156: 3.308678944e-06 | P156: 0 | Q156: 0 | R156: 0 | S156: 0 | T156: =SUM($S$10:$S157) -> 0 | U156: 0 | W156: 0 | X156: 0 | Y156: 0 | Z156: 0 | AA156: =SUM($Z$11:$Z157) -> 0 | AB156: 0 | AO156: 5.727474227e-06
A157: 740 | B157: 1.363184227e-05 | C157: 9.519979543e-07 | E157: 2.345890809e-06 | F157: 1.788221874e-07 | G157: 3.466939396e-07 | J157: 2.137328194e-05 | K157: 2.122056762e-06 | L157: 4.721305142e-06 | P157: 0 | Q157: 0 | R157: 0 | S157: 0 | T157: =SUM($S$10:$S158) -> 0 | U157: 0 | W157: 0 | X157: 0 | Y157: 0 | Z157: 0 | AA157: =SUM($Z$11:$Z158) -> 0 | AB157: 0 | AO157: 8.8718525e-06
A158: 745 | B158: 2.077705194e-05 | C158: 1.429041934e-06 | E158: 3.395913276e-06 | F158: 2.531043682e-07 | G158: 4.750763688e-07 | J158: 3.198356575e-05 | K158: 3.104563532e-06 | L158: 6.687046659e-06 | P158: 0 | Q158: 0 | R158: 0 | S158: 0 | T158: =SUM($S$10:$S159) -> 0 | U158: 0 | W158: 0 | X158: 0 | Y158: 0 | Z158: 0 | AA158: =SUM($Z$11:$Z159) -> 0 | AB158: 0 | AO158: 1.363184227e-05
A159: 750 | B159: 3.141249959e-05 | C159: 2.12708953e-06 | E159: 4.876934491e-06 | F159: 3.552350713e-07 | G159: 6.458459809e-07 | J159: 4.750638342e-05 | K159: 4.506517329e-06 | L159: 9.400735296e-06 | P159: 0 | Q159: 0 | R159: 0 | S159: 0 | T159: =SUM($S$10:$S160) -> 0 | U159: 0 | W159: 0 | X159: 0 | Y159: 0 | Z159: 0 | AA159: =SUM($Z$11:$Z160) -> 0 | AB159: 0 | AO159: 2.077705194e-05
A160: 755 | B160: 4.71096989e-05 | C160: 3.139439861e-06 | E160: 6.948263989e-06 | F160: 4.943753863e-07 | G160: 8.710274807e-07 | J160: 7.003897006e-05 | K160: 6.490292614e-06 | L160: 1.311699842e-05 | P160: 0 | Q160: 0 | R160: 0 | S160: 0 | T160: =SUM($S$10:$S161) -> 0 | U160: 0 | W160: 0 | X160: 0 | Y160: 0 | Z160: 0 | AA160: =SUM($Z$11:$Z161) -> 0 | AB160: 0 | AO160: 3.141249959e-05
A161: 760 | B161: 7.008216156e-05 | C161: 4.594492532e-06 | E161: 9.820688355e-06 | F161: 6.821946203e-07 | G161: 1.165359244e-06 | J161: 0.0001024904331 | K161: 9.273752442e-06 | L161: 1.816527113e-05 | P161: 0 | Q161: 0 | R161: 0 | S161: 0 | T161: =SUM($S$10:$S162) -> 0 | U161: 0 | W161: 0 | X161: 0 | Y161: 0 | Z161: 0 | AA161: =SUM($Z$11:$Z162) -> 0 | AB161: 0 | AO161: 4.71096989e-05
A162: 765 | B162: 0.0001034175017 | C162: 6.667068029e-06 | E162: 1.377021019e-05 | F162: 9.333713732e-07 | G162: 1.546675248e-06 | J162: 0.0001488591953 | K162: 1.314617478e-05 | L162: 2.496739778e-05 | P162: 0 | Q162: 0 | R162: 0 | S162: 0 | T162: =SUM($S$10:$S163) -> 0 | U162: 0 | W162: 0 | X162: 0 | Y162: 0 | Z162: 0 | AA162: =SUM($Z$11:$Z163) -> 0 | AB162: 0 | AO162: 7.008216156e-05
A163: 770 | B163: 0.0001513805423 | C163: 9.592608127e-06 | E163: 1.915440209e-05 | F163: 1.2661297e-06 | G163: 2.036265744e-06 | J163: 0.0002145900692 | K163: 1.848758181e-05 | L163: 3.405786541e-05 | P163: 0 | Q163: 0 | R163: 0 | S163: 0 | T163: =SUM($S$10:$S164) -> 0 | U163: 0 | W163: 0 | X163: 0 | Y163: 0 | Z163: 0 | AA163: =SUM($Z$11:$Z164) -> 0 | AB163: 0 | AO163: 0.0001034175017
A164: 775 | B164: 0.0002198040045 | C164: 1.368469244e-05 | E164: 2.643150719e-05 | F164: 1.702788005e-06 | G164: 2.659185711e-06 | J164: 0.0003070279783 | K164: 2.579177003e-05 | L164: 4.610654961e-05 | P164: 0 | Q164: 0 | R164: 0 | S164: 0 | T164: =SUM($S$10:$S165) -> 0 | U164: 0 | W164: 0 | X164: 0 | Y164: 0 | Z164: 0 | AA164: =SUM($Z$11:$Z165) -> 0 | AB164: 0 | AO164: 0.0001513805423
A165: 780 | B165: 0.0003165852974 | C165: 1.935625857e-05 | E165: 3.618228213e-05 | F165: 2.270287783e-06 | G165: 3.444472053e-06 | J165: 0.0004359868284 | K165: =(J166-J165)/(A165-A164) -> 3.569319538e-05 | L165: 6.19436331e-05 | P165: 0 | Q165: 0 | R165: 0 | S165: 0 | T165: =SUM($S$10:$S166) -> 0 | U165: 0 | W165: 0 | X165: 0 | Y165: 0 | Z165: 0 | AA165: =SUM($Z$11:$Z166) -> 0 | AB165: 0 | AO165: 0.0002198040045
A166: 785 | B166: 0.0004523093348 | C166: 2.714480747e-05 | E166: 4.913438502e-05 | F166: 3.000657228e-06 | G166: 4.425222412e-06 | J166: 0.0006144528053 | K166: 4.899764542e-05 | L166: 8.258607425e-05 | P166: 0 | Q166: 0 | R166: 0 | S166: 0 | T166: =SUM($S$10:$S167) -> 0 | U166: 0 | W166: 0 | X166: 0 | Y166: 0 | Z166: 0 | AA166: =SUM($Z$11:$Z167) -> 0 | AB166: 0 | AO166: 0.0003165852973
A167: 790 | B167: 0.0006410178129 | C167: 3.774169562e-05 | E167: 6.618885441e-05 | F167: 3.93135154e-06 | G167: 5.638481104e-06 | J167: 0.0008594410324 | K167: 6.671631556e-05 | L167: 0.0001092646559 | P167: 0 | Q167: 0 | R167: 0 | S167: 0 | T167: =SUM($S$10:$S168) -> 0 | U167: 0 | W167: 0 | X167: 0 | Y167: 0 | Z167: 0 | AA167: =SUM($Z$11:$Z168) -> 0 | AB167: 0 | AO167: 0.0004523093346
A168: 795 | B168: 0.0009011445388 | C168: 5.202534519e-05 | E168: 8.844790042e-05 | F168: 5.105398376e-06 | G168: 7.124871925e-06 | J168: 0.00119302261 | K168: 9.010248665e-05 | L168: 0.0001434502374 | P168: 0 | Q168: 0 | R168: 0 | S168: 0 | T168: =SUM($S$10:$S169) -> 0 | U168: 0 | W168: 0 | X168: 0 | Y168: 0 | Z168: 0 | AA168: =SUM($Z$11:$Z169) -> 0 | AB168: 0 | AO168: 0.0006410178126
A169: 800 | B169: 0.001256633678 | C169: 7.109782774e-05 | E169: 0.0001172428382 | F169: 6.571264345e-06 | G169: 8.92791441e-06 | J169: 0.001643535043 | K169: 0.000120689472 | L169: 0.0001868773797 | P169: 0 | Q169: 0 | R169: 0 | S169: 0 | T169: =SUM($S$10:$S170) -> 0 | U169: 0 | W169: 0 | X169: 0 | Y169: 0 | Z169: 0 | AA169: =SUM($Z$11:$Z170) -> 0 | AB169: 0 | AO169: 0.0009011445382
A170: 805 | B170: 0.001738252609 | C170: 9.632378621e-05 | E170: 0.0001541605439 | F170: 8.382348374e-06 | G170: 1.10929608e-05 | J170: 0.002246982403 | K170: 0.0001603278662 | L170: 0.0002415630274 | P170: 0 | Q170: 0 | R170: 0 | S170: 0 | T170: =SUM($S$10:$S171) -> 0 | U170: 0 | W170: 0 | X170: 0 | Y170: 0 | Z170: 0 | AA170: =SUM($Z$11:$Z171) -> 0 | AB170: 0 | AO170: 0.001256633676
A171: 810 | B171: 0.002385102872 | C171: 0.0001293700527 | E171: 0.0002010663219 | F171: 1.0596002e-05 | G171: 1.366569661e-05 | J171: 0.003048621734 | K171: 0.0002112194036 | L171: 0.000309817456 | P171: 0 | Q171: 0 | R171: 0 | S171: 0 | T171: =SUM($S$10:$S172) -> 0 | U171: 0 | W171: 0 | X171: 0 | Y171: 0 | Z171: 0 | AA171: =SUM($Z$11:$Z172) -> 0 | AB171: 0 | AO171: 0.001738252606
A172: 815 | B172: 0.003246320891 | C172: 0.0001722436039 | E172: 0.0002601205639 | F172: 1.327197713e-05 | G172: 1.669015941e-05 | J172: 0.004104718752 | K172: 0.0002759439484 | L172: 0.0003942442532 | P172: 0 | Q172: 0 | R172: 0 | S172: 0 | T172: =SUM($S$10:$S173) -> 0 | U172: 0 | W172: 0 | X172: 0 | Y172: 0 | Z172: 0 | AA172: =SUM($Z$11:$Z173) -> 0 | AB172: 0 | AO172: 0.002385102868
A173: 820 | B173: 0.004382944386 | C173: 0.000227324699 | E173: 0.0003337860932 | F173: 1.647021098e-05 | G173: 2.020624943e-05 | J173: 0.005484438494 | K173: 0.0003574753484 | L173: 0.00049772576 | P173: 0 | Q173: 0 | R173: 0 | S173: 0 | T173: =SUM($S$10:$S174) -> 0 | U173: 0 | W173: 0 | X173: 0 | Y173: 0 | Z173: 0 | AA173: =SUM($Z$11:$Z174) -> 0 | AB173: 0 | AO173: 0.003246320883
A174: 825 | B174: 0.005869900413 | C174: 0.0002973912053 | E174: 0.0004248226737 | F174: 2.024787758e-05 | G174: 2.424673175e-05 | J174: 0.007271815236 | K174: 0.0004591811522 | L174: 0.0006233902122 | P174: 0 | Q174: 0 | R174: 0 | S174: 0 | T174: =SUM($S$10:$S175) -> 0 | U174: 0 | W174: 0 | X174: 0 | Y174: 0 | Z174: 0 | AA174: =SUM($Z$11:$Z175) -> 0 | AB174: 0 | AO174: 0.004382944372
A175: 830 | B175: 0.007798046929 | C175: 0.0003856293033 | E175: 0.000536264869 | F175: 2.465566725e-05 | G175: 2.883376445e-05 | J175: 0.009567720997 | K175: 0.0005848006107 | L175: 0.0007745568484 | P175: 0 | Q175: 0 | R175: 0 | S175: 0 | T175: =SUM($S$10:$S176) -> 0 | U175: 0 | W175: 0 | X175: 0 | Y175: 0 | Z175: 0 | AA175: =SUM($Z$11:$Z176) -> 0 | AB175: 0 | AO175: 0.005869900385
A176: 835 | B176: 0.01027617221 | C176: 0.0004956250558 | E176: 0.0006713793462 | F176: 2.973330115e-05 | G176: 3.397502824e-05 | J176: 0.01249172405 | K176: 0.0007383950649 | L176: 0.0009546555647 | P176: 1 | Q176: 0 | R176: 0 | S176: 0 | T176: =SUM($S$10:$S177) -> 0 | U176: 0 | W176: 1 | X176: 0 | Y176: 0 | Z176: 0 | AA176: =SUM($Z$11:$Z177) -> 0 | AB176: 0 | AO176: 0.007798046879
A177: 840 | B177: 0.01343282637 | C177: 0.0006313308322 | E177: 0.0008335978805 | F177: 3.55043465e-05 | G177: 3.965958004e-05 | J177: 0.01618369937 | K177: 0.0009242648728 | L177: 0.001167118355 | P177: 1 | Q177: 0 | R177: 0 | S177: 0 | T177: =SUM($S$10:$S178) -> 0 | U177: 0 | W177: 1 | X177: 0 | Y177: 0 | Z177: 0 | AA177: =SUM($Z$11:$Z178) -> 0 | AB177: 0 | AO177: 0.01027617212
A178: 845 | B178: 0.01741782846 | C178: 0.0007970004185 | E178: 0.001026422811 | F178: 4.19704697e-05 | G178: 4.585360417e-05 | J178: 0.02080502374 | K178: 0.001146827587 | L178: 0.001415240821 | P178: 1 | Q178: 0 | R178: 0 | S178: 0 | T178: =SUM($S$10:$S179) -> 0 | U178: 0 | W178: 1 | X178: 0 | Y178: 0 | Z178: 0 | AA178: =SUM($Z$11:$Z179) -> 0 | AB178: 0 | AO178: 0.01343282621
A179: 850 | B179: 0.02240326317 | C179: 0.0009970869409 | E179: 0.001253302577 | F179: 4.910534471e-05 | G179: 5.249628506e-05 | J179: 0.02653916167 | K179: 0.001410453242 | L179: 0.001702013496 | P179: 1 | Q179: 0 | R179: 0 | S179: 0 | T179: =SUM($S$10:$S180) -> 0 | U179: 0 | W179: 1 | X179: 0 | Y179: 0 | Z179: 0 | AA179: =SUM($Z$11:$Z180) -> 0 | AB179: 0 | AO179: 0.01741782817
A180: 855 | B180: 0.02858375623 | C180: 0.001236098613 | E180: 0.001517476258 | F180: 5.684851969e-05 | G180: 5.949607321e-05 | J180: 0.03359142788 | K180: 0.00171925448 | L180: 0.00202992462 | P180: 1 | Q180: 0 | R180: 0 | S180: 0 | T180: =SUM($S$10:$S181) -> 0 | U180: 0 | W180: 1 | X180: 0 | Y180: 0 | Z180: 0 | AA180: =SUM($Z$11:$Z181) -> 0 | AB180: 0 | AO180: 0.02240326265
A181: 860 | B181: 0.03617580063 | C181: 0.00151840888 | E181: 0.001821787774 | F181: 6.509962869e-05 | G181: 6.672765473e-05 | J181: 0.04218770029 | K181: 0.002076831795 | L181: 0.002400738221 | P181: 1 | Q181: 0 | R181: 0 | S181: 0 | T181: =SUM($S$10:$S182) -> 0 | U181: 0 | W181: 1 | X181: 0 | Y181: 0 | Z181: 0 | AA181: =SUM($Z$11:$Z182) -> 0 | AB181: 0 | AO181: 0.02858375531
A182: 865 | B182: 0.04541589986 | C182: 0.001848019846 | E182: 0.002168472545 | F182: 7.371340998e-05 | G182: 7.402996038e-05 | J182: 0.05257185926 | K182: 0.002485977509 | L182: 0.002815253937 | P182: 1 | Q182: 0 | R182: 0 | S182: 0 | T182: =SUM($S$10:$S183) -> 0 | U182: 0 | W182: 1 | X182: 0 | Y182: 0 | Z182: 0 | AA182: =SUM($Z$11:$Z183) -> 0 | AB182: 0 | AO182: 0.03617579902
A183: 870 | B183: 0.05655730462 | C183: 0.002228280952 | E183: 0.002558921874 | F183: 8.249604924e-05 | G183: 8.1205557e-05 | J183: 0.06500174681 | K183: 0.002948346004 | L183: 0.003273057651 | P183: 1 | Q183: 0 | R183: 0 | S183: 0 | T183: =SUM($S$10:$S184) -> 0 | U183: 0 | W183: 1 | X183: 0 | Y183: 0 | Z183: 0 | AA183: =SUM($Z$11:$Z184) -> 0 | AB183: 0 | AO183: 0.04541589707
A184: 875 | B184: 0.0698651478 | C184: 0.002661568636 | E184: 0.002993433038 | F184: 9.120339424e-05 | G184: 8.802174797e-05 | J184: 0.07974347683 | K184: 0.003464102071 | L184: 0.00377227474 | P184: 1 | Q184: 0 | R184: 0 | S184: 0 | T184: =SUM($S$10:$S185) -> 0 | U184: 0 | W184: 1 | X184: 0 | Y184: 0 | Z184: 0 | AA184: =SUM($Z$11:$Z185) -> 0 | AB184: 0 | AO184: 0.05655729983
A185: 880 | B185: 0.08560983299 | C185: 0.003148937037 | E185: 0.003470955817 | F185: 9.954158038e-05 | G185: 9.421366673e-05 | J185: 0.09706398718 | K185: 0.004031563827 | L185: 0.004309340119 | P185: 1 | Q185: 0 | R185: 0 | S185: 0 | T185: =SUM($S$10:$S186) -> 0 | U185: 0 | W185: 1 | X185: 0 | Y185: 0 | Z185: 0 | AA185: =SUM($Z$11:$Z186) -> 0 | AB185: 0 | AO185: 0.06986513962
A186: 885 | B186: 0.1040586051 | C186: 0.003689754431 | E186: 0.003988848841 | F186: 0.0001071705532 | G186: 9.948957545e-05 | J186: 0.1172218063 | K186: 0.004646860941 | L186: 0.004878801269 | P186: 1 | Q186: 0 | R186: 0 | S186: 0 | T186: =SUM($S$10:$S187) -> 0 | U186: 0 | W186: 1 | X186: 0 | Y186: 0 | Z186: 0 | AA186: =SUM($Z$11:$Z187) -> 0 | AB186: 0 | AO186: 0.08560981914
A187: 890 | B187: 0.1254653286 | C187: 0.004281344687 | E187: 0.004542661349 | F187: 0.0001137108726 | G187: 0.0001035384806 | J187: 0.140456111 | K187: 0.005303632682 | L187: 0.005473171619 | P187: 1 | Q187: 0 | R187: 0 | S187: 0 | T187: =SUM($S$10:$S188) -> 0 | U187: 0 | W187: 1 | X187: 0 | Y187: 0 | Z187: 0 | AA187: =SUM($Z$11:$Z188) -> 0 | AB187: 0 | AO187: 0.1040585819
A188: 895 | B188: 0.1500586145 | C188: 0.004918657177 | E188: 0.005125957568 | F188: 0.000118754029 | G188: 0.0001060400502 | J188: 0.1669742744 | K188: 0.005992792914 | L188: 0.006082851919 | P188: 1 | Q188: 0 | R188: 0 | S188: 0 | T188: =SUM($S$10:$S189) -> 0 | U188: 0 | W188: 1 | X188: 0 | Y188: 0 | Z188: 0 | AA188: =SUM($Z$11:$Z189) -> 0 | AB188: 0 | AO188: 0.1254652898
A189: 900 | B189: 0.1780285736 | C189: 0.005593991827 | E189: 0.005730201639 | F189: 0.0001218763004 | G189: 0.0001066766686 | J189: 0.196938239 | K189: 0.006702390284 | L189: 0.006696136305 | P189: 1 | Q189: 0 | R189: 0 | S189: 0 | T189: =SUM($S$10:$S190) -> 0 | U189: 0 | W189: 1 | X189: 0 | Y189: 0 | Z189: 0 | AA189: =SUM($Z$11:$Z190) -> 0 | AB189: 0 | AO189: 0.1500585504
A190: 905 | B190: 0.2095126125 | C190: 0.006296807788 | E190: 0.006344720572 | F190: 0.0001226559352 | G190: 0.0001051473043 | J190: 0.2304501904 | K190: 0.007417590889 | L190: 0.007299317466 | P190: 1 | Q190: 0 | R190: 0 | S190: 0 | T190: =SUM($S$10:$S191) -> 0 | U190: 0 | W190: 1 | X190: 0 | Y190: 0 | Z190: 0 | AA190: =SUM($Z$11:$Z191) -> 0 | AB190: 0 | AO190: 0.1780284686
A191: 910 | B191: 0.2445808336 | C191: 0.007013644212 | E191: 0.006956760992 | F191: 0.0001206931768 | G191: 0.0001011826968 | J191: 0.2675381449 | K191: 0.008120807564 | L191: 0.007876901664 | P191: 1 | Q191: 0 | R191: 0 | S191: 0 | T191: =SUM($S$10:$S192) -> 0 | U191: 0 | W191: 1 | X191: 0 | Y191: 0 | Z191: 0 | AA191: =SUM($Z$11:$Z192) -> 0 | AB191: 0 | AO191: 0.2095124419
A192: 915 | B192: 0.28322173 | C192: 0.007728179274 | E192: 0.00755165234 | F192: 0.0001156323634 | G192: 9.456121734e-05 | J192: 0.3081421827 | K192: 0.008791994156 | L192: 0.008411939336 | P192: 1 | Q192: 0 | R192: 0 | S192: 0 | T192: =SUM($S$10:$S193) -> 0 | U192: 0 | W192: 1 | X192: 0 | Y192: 0 | Z192: 0 | AA192: =SUM($Z$11:$Z193) -> 0 | AB192: 0 | AO192: 0.2445805583
A193: 920 | B193: 0.3253289742 | C193: 0.008421448848 | E193: 0.008113084625 | F193: 0.0001071850724 | G193: 8.512461647e-05 | J193: 0.3521021535 | K193: 0.009409115081 | L193: 0.008886470822 | P193: 1 | Q193: 0 | R193: 0 | S193: 0 | T193: =SUM($S$10:$S194) -> 0 | U193: 0 | W193: 1 | X193: 0 | Y193: 0 | Z193: 0 | AA193: =SUM($Z$11:$Z194) -> 0 | AB193: 0 | AO193: 0.2832212896
A194: 925 | B194: 0.3706901688 | C194: 0.009072238912 | E194: 0.008623503064 | F194: 9.515304665e-05 | G194: 7.279277655e-05 | J194: 0.3991477289 | K194: 0.009948790077 | L194: 0.009282079659 | P194: 1 | Q194: 0 | R194: 0 | S194: 0 | T194: =SUM($S$10:$S195) -> 0 | U194: 0 | W194: 1 | X194: 0 | Y194: 0 | Z194: 0 | AA194: =SUM($Z$11:$Z195) -> 0 | AB194: 0 | AO194: 0.3253282753
A195: 930 | B195: 0.4189784495 | C195: 0.009657656138 | E195: 0.009064615092 | F195: 7.94494714e-05 | G195: 5.757653163e-05 | J195: 0.4488916793 | K195: 0.01038710214 | L195: 0.00958053832 | P195: 1 | Q195: 0 | R195: 0 | S195: 0 | T195: =SUM($S$10:$S196) -> 0 | U195: 0 | W195: 1 | X195: 0 | Y195: 0 | Z195: 0 | AA195: =SUM($Z$11:$Z196) -> 0 | AB195: 0 | AO195: 0.3706890684
A196: 935 | B196: 0.4697477973 | C196: 0.01015386956 | E196: 0.009417997778 | F196: 6.011709153e-05 | G196: 3.958762277e-05 | J196: 0.5008271899 | K196: 0.01070054373 | L196: 0.009764523776 | P196: 1 | Q196: 0 | R196: 0 | S196: 0 | T196: =SUM($S$10:$S197) -> 0 | U196: 0 | W196: 1 | X196: 0 | Y196: 0 | Z196: 0 | AA196: =SUM($Z$11:$Z197) -> 0 | AB196: 0 | AO196: 0.4189767312
A197: 940 | B197: 0.5224328148 | C197: 0.01053700349 | E197: 0.009665786007 | F197: 3.734167537e-05 | G197: 1.904492584e-05 | J197: 0.5543299086 | K197: 0.01086706359 | L197: 0.009818373274 | P197: 1 | Q197: 0 | R197: 0 | S197: 0 | T197: =SUM($S$10:$S198) -> 0 | U197: 0 | W197: 1 | X197: 0 | Y197: 0 | Z197: 0 | AA197: =SUM($Z$11:$Z198) -> 0 | AB197: 0 | AO197: 0.4697451357
A198: 945 | B198: 0.5763535586 | C198: 0.01078414876 | E198: 0.009791414532 | F198: 1.145947071e-05 | G198: -3.723776836e-06 | J198: 0.6086652265 | K198: 0.01086716488 | L198: 0.009728845045 | P198: 1 | Q198: 0 | R198: 0 | S198: 0 | T198: =SUM($S$10:$S199) -> 0 | U198: 0 | W198: 1 | X198: 0 | Y198: 1 | Z198: 0 | AA198: =SUM($Z$11:$Z199) -> 0 | AB198: 0 | AO198: 0.5224287252
A199: 950 | B199: 0.6307257946 | C199: 0.0108744472 | E199: 0.009780380714 | F199: -1.704244909e-05 | G199: -2.828501102e-05 | J199: 0.6630010509 | K199: 0.01068499591 | L199: 0.009485844637 | P199: 1 | Q199: 0 | R199: 1 | S199: 0 | T199: =SUM($S$10:$S200) -> 0 | U199: 0 | W199: 1 | X199: 0 | Y199: 1 | Z199: 0 | AA199: =SUM($Z$11:$Z200) -> 0 | AB199: 0 | AO199: 0.5763473255
A200: 955 | B200: 0.6846767633 | C200: 0.01079019375 | E200: 0.009620990041 | F200: -4.753368726e-05 | G200: -5.410808904e-05 | J200: 0.7164260305 | K200: 0.01030936905 | L200: 0.009083075858 | P200: 1 | Q200: 0 | R200: 1 | S200: 0 | T200: =SUM($S$10:$S201) -> 0 | U200: 0 | W200: 1 | X200: 0 | Y200: 1 | Z200: 0 | AA200: =SUM($Z$11:$Z201) -> 0 | AB200: 0 | AO200: 0.6307163708
... 209 more rows
